Cogmind - Beta 17 @@@ ROGUE MODE // 2026.07.26 @ 12:38:11 Player: aperiodic Result: Destroyed by S-43 Plague with Heavy Machine Gun Performance ------------- Evolutions (9) 4500 Regions Visited (25) 5000 Robots Destroyed (308) 1540 Value Destroyed (14552) 14552 Prototype IDs (133) 2660 Alien Tech Used (5) 1000 Bonus (15502) 15502 TOTAL SCORE: 44754 Bonus ------- High Alert Combat Kills 1226 Follower Combat Kills 2296 Hunted by Unchained 500 Entered Garrisons 200 Network Hubs Disabled 400 Delivered SUBCON Basin 2000 Registered with UFD 300 Met Optimus in HQ 500 Met Zhirov 300 MAIN.C Attacked Warlord 500 Warlord Defense Kills 1214 Met R17 at Cetus 500 Found Hidden Lab 3000 Used Core Reset Matrix 3000 Met R17 at Research 2000 Pursued by Intercept 1000 Friendly Fire -3434 Cogmind --------- Core Integrity 0/1600 Matter 300/300 Energy 99/100 System Corruption 0% Temperature Cool (0) Movement Core (50) Location -1/Garrison Parts ------- > --- POWER (2) -------- (None) > --- PROPULSION (6) --- (None) > --- UTILITY (13) ----- Machine Analyzer Experimental Optical Array Advanced Signal Interpreter Experimental Targeting Computer Advanced Melee Analysis Suite Graphene Brace Improved Corruption Screen > --- WEAPON (4) ------- (None) > --- INVENTORY (5) ---- Experimental Energy Well (600) Experimental Cloaking Device EM Shield Advanced Point Defense System Improved Arc Projector Peak State ------------ > --- POWER ------------ Vortex Chain Reactor > --- PROPULSION ------- Biometal Heavy Treads Advanced Heavy Siege Treads > --- UTILITY ---------- High-capacity Storage Unit Experimental Optical Array Advanced Signal Interpreter Experimental Targeting Computer Experimental Core Analyzer Experimental Transmission Jammer Experimental Powered Armor Graphene Brace Experimental Focal Shield Experimental EM Shield Advanced Force Field System Mapper Quantum Router > --- WEAPON ----------- Hypervelocity EM Gauss Rifle Hypervelocity EM Gauss Rifle Overtuned Railgun Guided Remote Datajack > --- INVENTORY -------- Experimental Energy Well Deep Structural Scanner Advanced Trap Scanner Long-range Sensor Array Advanced Particle Accelerator Advanced Kinecellerator Experimental Cloaking Device Experimental Power Shielding Experimental Utility Shielding Advanced Thermal Shield Advanced Point Defense System Long-range Tractor Beam Transdimensional Reconstructor Transdimensional Reconstructor Core Regenerator Core Reset Matrix Enhanced Hardcell Cannon Tiamat Missile Launcher CPS Tube [Rating: 209] Favorites ----------- Power Meta Core Engine Light Ion Engine Power Core Meta Core Reactor Vortex Chain Reactor Propulsion Centrium Heavy Treads Treads Centrium Heavy Treads Leg Improved VSS Leg Wheel Wheel Hover Unit Cooled Aerolev Unit Flight Unit Cooled Nuclear Pulse Thruster Utility High-capacity Storage Unit Device Self-contained Transmogrifier Storage High-capacity Storage Unit Processor Tech Extrapolator Hackware System Mapper Protection Centrium Medium Armor Plating Weapon Advanced KE Penetrator Energy Gun EM Shotgun Energy Cannon Subdweller Beam Cannon Ballistic Gun Advanced KE Penetrator Ballistic Cannon Bore Cannon Launcher Mini Smartbomb Launcher Special Weapon Junk Cannon Impact Weapon Heavy Hammer Slashing Weapon Ripper Piercing Weapon Kinetic Spear Build | -11 -10 -10 -8 -8 -6 -6 -6 -6 -6 -5 -5 -5 -5 -4 -4 -4 -4 -4 -3 -3 -3 -3 -2 -1 -1 ------- Run | Yrd Mat Sub Rec Scr Fac Ext Cet Arc Hub Fac Upp Upp War Pro Fac Upp Upp Zhi Pro Res Arm Lab Res Acc Gar Slots Evolved 18 | . . . . . 8 . . . . 2 . . . . 2 . . . . 2 . . 2 2 . Power 1 | . . . . . . . . . . 1 . . . . . . . . . . . . . . . Propulsion 4 | . . . . . 2 . . . . . . . . . . . . . . . . . . 2 . Utility 11 | . . . . . 5 . . . . 1 . . . . 2 . . . . 2 . . 1 . . Weapon 2 | . . . . . 1 . . . . . . . . . . . . . . . . . 1 . . Parts Attached 215 | 9 10 26 . 7 11 3 18 5 9 15 1 . 9 2 15 3 . 4 . 8 17 6 24 13 . Power 15 | 1 3 3 . . 1 . . . . 1 . . 1 . 2 . . . . . . . 2 1 . Engine 7 | 1 3 3 . . . . . . . . . . . . . . . . . . . . . . . Core 2 | . . . . . 1 . . . . . . . . . 1 . . . . . . . . . . Reactor 6 | . . . . . . . . . . 1 . . 1 . 1 . . . . . . . 2 1 . Propulsion 31 | 3 2 5 . . 2 1 1 . . 2 . . . . . . . 1 . . 4 1 7 2 . Treads 13 | 1 . . . . 2 1 1 . . 2 . . . . . . . 1 . . 4 1 . . . Leg . | . . . . . . . . . . . . . . . . . . . . . . . . . . Wheel 9 | 2 2 5 . . . . . . . . . . . . . . . . . . . . . . . Hover 3 | . . . . . . . . . . . . . . . . . . . . . . . 3 . . Flight 6 | . . . . . . . . . . . . . . . . . . . . . . . 4 2 . Utility 102 | 2 1 9 . 2 6 2 11 3 6 7 1 . 5 1 9 3 . 3 . 6 8 1 8 8 . Device 45 | 1 . 1 . 2 2 . 4 2 4 . . . 4 . 5 2 . 2 . 3 5 . 5 3 . Storage 8 | 1 1 1 . . . 1 1 . . . . . 1 1 . . . . . 1 . . . . . Processor 17 | . . . . . 3 . 1 . 1 1 . . . . 2 . . . . 1 1 . 2 5 . Hackware 6 | . . . . . . . . . . 2 . . . . 2 . . . . 1 . . 1 . . Protection 26 | . . 7 . . 1 1 5 1 1 4 1 . . . . 1 . 1 . . 2 1 . . . Artifact . | . . . . . . . . . . . . . . . . . . . . . . . . . . Weapon 67 | 3 4 9 . 5 2 . 6 2 3 5 . . 3 1 4 . . . . 2 5 4 7 2 . Energy Gun 16 | . 2 4 . . 2 . 1 1 . . . . . . . . . . . . 2 2 1 1 . Energy Cannon 9 | . . 3 . . . . . . . 2 . . 1 . . . . . . 1 1 . . 1 . Ballistic Gun 21 | 3 . . . 1 . . 4 1 2 2 . . . 1 2 . . . . 1 1 2 1 . . Ballistic Cannon 3 | . . . . . . . . . . . . . . . 1 . . . . . . . 2 . . Launcher 3 | . . 1 . . . . . . . 1 . . . . . . . . . . . . 1 . . Special Weapon 11 | . . 1 . 2 . . 1 . 1 . . . 2 . 1 . . . . . 1 . 2 . . Impact Weapon 2 | . 2 . . . . . . . . . . . . . . . . . . . . . . . . Slashing Weapon 2 | . . . . 2 . . . . . . . . . . . . . . . . . . . . . Piercing Weapon . | . . . . . . . . . . . . . . . . . . . . . . . . . . Special Melee Weapon . | . . . . . . . . . . . . . . . . . . . . . . . . . . Unidentified Prototypes 41 | . . . . 2 . . 5 . 6 1 1 . 6 1 5 . . 1 . 2 2 3 6 . . Corrupted Parts 6 | . . 1 . . . . 1 1 . 1 . . . . . . . . . . 2 . . . . System Corruption 29 | . . 6 . . . . 3 6 . 10 . . . . . . . . . . 4 . . . . Parts Lost 68 | . 2 10 . . . . 1 . 5 4 . . 1 . 8 . . . . 2 2 . 21 8 4 Power 8 | . 1 2 . . . . . . . . . . . . 3 . . . . . . . 1 1 . Propulsion 18 | . 1 3 . . . . . . . 2 . . . . . . . . . 1 . . 5 6 . Utility 22 | . . 3 . . . . . . 3 1 . . . . 3 . . . . . 1 . 7 . 4 Weapon 20 | . . 2 . . . . 1 . 2 1 . . 1 . 2 . . . . 1 1 . 8 1 . Highest Loss Streak 16 | . 1 2 . . . . 1 . 3 2 . . 1 . 6 . . . . 1 1 . 16 4 3 To Critical Strikes . | . . . . . . . . . . . . . . . . . . . . . . . . . . Average Backups 9 | 4 8 6 20 3 11 12 11 15 15 14 15 15 17 18 17 13 15 16 17 18 18 18 16 4 5 Power . | . . . . . . . . 1 1 . . . . 1 . . . . . . . . . . . Propulsion . | 2 2 1 4 . . . . . . . . . . . . 1 1 1 1 . . . . . . Utility 5 | . 1 1 9 2 4 5 5 8 9 8 9 10 10 11 10 8 10 11 11 12 12 10 10 3 4 Weapon 1 | 1 4 2 4 . 2 3 3 3 3 3 2 2 4 4 4 2 2 2 2 2 2 2 1 1 1 Tool/Special . | . . . . . . . . . . . . . . . . . . . . . . . . . . Unused Backups 58 | . 2 2 . 19 . . 24 1 . 1 1 . 2 1 1 . . . . . 1 1 1 . 1 Power 3 | . . . . . . . 2 1 . . . . . . . . . . . . . . . . . Propulsion 9 | . 2 . . 3 . . 3 . . . . . . . . . . . . . 1 . . . . Utility 37 | . . 2 . 14 . . 14 . . 1 . . 2 1 1 . . . . . . 1 . . 1 Weapon 8 | . . . . 2 . . 5 . . . 1 . . . . . . . . . . . . . . Tool/Special 1 | . . . . . . . . . . . . . . . . . . . . . . . 1 . . Average Slot Usage (%) 85 | . 99 85 73 92 71 71 75 76 74 71 72 73 72 67 86 77 77 77 77 78 79 78 81 77 39 Engine 3 | . 13 13 14 4 . . . . . . . . . . . . . . . . . . . . . Core 3 | . . . . 4 3 5 5 5 5 5 5 5 5 5 4 . . . . . . . . . . Reactor 3 | . . . . 4 1 . . . . 4 5 5 5 5 4 5 5 5 5 4 4 4 3 2 . Treads 5 | . . . . 2 17 16 11 11 11 7 10 10 10 10 9 10 10 10 10 8 9 9 6 . . Leg 3 | . . . . 7 . . . . . . . . . . . . . . . . . . . . . Wheel 4 | . 27 27 28 2 . . . . . . . . . . . . . . . . . . . . . Hover 1 | . . . . 3 . . . . . . . . . . . . . . . . . . . . . Flight 3 | . . . . 8 . . . . . . . . . . . . . . . . . . 1 17 . Device 14 | . 14 . . 20 13 10 5 5 12 9 5 5 5 5 10 14 14 14 14 9 16 14 18 20 6 Storage 3 | . 14 3 14 1 5 10 5 5 5 5 5 5 5 5 5 5 5 5 5 4 4 4 3 . . Processor 7 | . . . . . 11 11 15 16 16 15 15 15 15 15 25 26 26 26 26 23 20 19 17 26 30 Hackware 1 | . . . . . . . . . . 9 5 5 5 5 8 5 5 5 5 7 5 4 6 . . Protection 5 | . . 10 . 3 5 6 14 15 8 5 4 5 4 5 . . . . . 4 3 7 6 4 2 Energy Gun 4 | . . 13 12 7 . . . . . . . . . . . . . . . . 4 2 6 3 . Energy Cannon 2 | . . 10 3 3 . . . . . 3 4 5 3 . . . . . . 3 1 . . . . Ballistic Gun 5 | . 16 . . 1 . . 14 15 13 5 9 10 6 9 11 10 10 10 10 8 6 10 3 . . Ballistic Cannon 2 | . . . . 5 . . . . . . . . . . 1 . . . . . . . . 2 . Launcher 2 | . . 3 . 4 5 5 . . . . . . 1 . 1 . . . . . . . . . . Piercing Weapon 1 | . . . . 2 . . . . . . . . . . . . . . . . . . . . . Peak Build Rating 209 | 7 10 32 32 53 102 102 130 129 132 142 124 125 140 130 156 146 147 147 144 169 174 184 209 156 63 Average Rating 75 | 5 8 14 19 41 93 101 124 127 118 115 122 123 129 125 147 141 146 145 143 162 169 172 183 133 58 On Entrance 105 | . 7 10 32 18 53 102 101 129 128 111 111 123 124 122 126 144 146 147 142 142 165 170 184 135 63 Avg Prop Armor Cover (%) 11 | . . . . 12 8 4 3 15 . . . . . . . . . . . . . . . 8 . Naked Turns . | . . . . . . . . . . . . . . . . . . . . . . . . . . Heaviest Build 214 | 13 52 214 214 206 97 95 94 89 89 102 92 92 125 89 122 111 89 117 117 127 136 127 138 36 3 Greatest Support 160 | 26 32 26 20 80 138 110 160 160 160 160 155 155 155 155 155 155 155 155 150 150 150 155 155 48 3 Greatest Overweight (x) 29 | . 1 10 10 19 1 1 . 29 1 1 . . 1 . . . . . . . . . 5 . . Average Overweight (x) 3 | . . 2 10 6 . . . 23 . . . . . . . . . . . . . . . . . Largest Inventory Capacity 35 | 8 20 35 35 35 20 20 20 20 20 20 20 20 20 20 20 20 20 20 20 20 20 20 20 5 5 Average Capacity 13 | 7 12 12 35 7 20 20 20 20 20 20 20 20 20 20 20 20 20 20 20 20 20 20 17 5 5 Most Carried 35 | 8 14 35 35 35 19 20 20 20 20 20 20 20 20 20 20 18 19 20 19 20 20 20 20 5 5 Average Carried 11 | 4 8 9 29 5 17 18 18 19 19 17 19 19 19 19 18 14 18 19 18 19 19 18 16 4 5 Final Capacity 35 | 8 20 35 35 20 20 20 20 20 20 20 20 20 20 20 20 20 20 20 20 20 20 20 5 5 5 Final Carried 35 | 8 14 35 35 20 19 18 20 20 18 20 19 20 20 20 14 18 19 19 19 18 20 20 5 5 5 Scrap Suit Usage (%) 2 | . . . . . . . . . . . . . . . . . . . . . 70 1 . . . Parts Cannibalized 8 | . . . . . . . . . . . . . . . . . . . . . 8 . . . . Transmogrified Parts 391 | . . . . 391 . . . . . . . . . . . . . . . . . . . . . Integrity Recovered 688 | . . . . 688 . . . . . . . . . . . . . . . . . . . . . Class Distribution -------------------- 50% | Mutant 18% | Scavenger-Tank 5% | Hacker-Skirmisher 5% | Hauler-Mutant 4% | Scavenger-Skirmisher 3% | Commander-Tank 3% | Scavenger-Mutant Dominant Class ---------------- Mutant | -10/Materials Subdweller-Mutant | -10/Subcaves Hauler-Mutant | -8/Recycling Mutant | -8/Scraptown Tank | -6/Factory Commander-Tank | -6/Extension Commander-Tank | -6/Cetus Scavenger-Tank | -6/Archives Scavenger-Tank | -6/Hub_04(d) Scavenger-Tank | -5/Factory Scavenger-Skirmisher | -5/Upper Caves Scavenger-Skirmisher | -5/Upper Caves Scavenger-Skirmisher | -5/Warlord Scavenger-Mutant | -4/Proximity Caves Scavenger-Tank | -4/Factory Hacker-Skirmisher | -4/Upper Caves Hacker-Skirmisher | -4/Upper Caves Hacker-Skirmisher | -4/Zhirov Hacker-Skirmisher | -3/Proximity Caves Hacker-Skirmisher | -3/Research Scavenger-Tank | -3/Armory Scavenger-Tank | -3/Lab Hacker-Tank | -2/Research Scavenger-Sprinter | -1/Access Scavenger-Mutant | -1/Garrison Resources | -11 -10 -10 -8 -8 -6 -6 -6 -6 -6 -5 -5 -5 -5 -4 -4 -4 -4 -4 -3 -3 -3 -3 -2 -1 -1 ----------- Run | Yrd Mat Sub Rec Scr Fac Ext Cet Arc Hub Fac Upp Upp War Pro Fac Upp Upp Zhi Pro Res Arm Lab Res Acc Gar Matter Collected 12063 | 292 272 789 . 55 87 270 1385 322 788 1221 103 81 198 121 1660 121 80 . 156 209 2052 . 1284 517 . Remotely 2310 | . . . . . . . . . . . . . . . 1004 85 . . . . 879 . 342 . . Salvage Created 15656 | 103 599 1121 . . 117 627 275 403 1332 2284 . . 212 38 3313 85 140 . 128 96 2999 . 1270 514 . Parts 736 | 9 29 65 . . 2 12 24 25 56 84 . . 15 3 146 . 1 . 4 . 164 . 68 29 . Haulers Intercepted 8 | . 2 . . . . . . . 3 1 . . . . 2 . . . . . . . . . . Recyclers Shooed 9 | . . . . . . . . . . 2 . . . . 4 . . . . . . . 2 1 . Parts Field Recycled . | . . . . . . . . . . . . . . . . . . . . . . . . . . Retrieved Matter . | . . . . . . . . . . . . . . . . . . . . . . . . . . Parts Self-Destructed 37 | . . 30 . . . . . . . . . 2 . 1 . . . . 4 . . . . . . Prevented . | . . . . . . . . . . . . . . . . . . . . . . . . . . Parts Restored . | . . . . . . . . . . . . . . . . . . . . . . . . . . Kills | -11 -10 -10 -8 -8 -6 -6 -6 -6 -6 -5 -5 -5 -5 -4 -4 -4 -4 -4 -3 -3 -3 -3 -2 -1 -1 ------- Run | Yrd Mat Sub Rec Scr Fac Ext Cet Arc Hub Fac Upp Upp War Pro Fac Upp Upp Zhi Pro Res Arm Lab Res Acc Gar Combat Hostiles Destroyed 214 | . 10 23 . . 4 6 2 1 10 35 . . 13 1 39 . . . 3 1 43 1 18 4 . Melee 5 | . 3 . . . . . . . . . . . . . . . . . . . . 1 1 . . Guns 109 | . 2 9 . . . . 2 1 10 5 . . . 1 34 . . . 3 1 39 . 1 1 . Cannons 42 | . . 7 . . 1 2 . . . 16 . . 1 . 3 . . . . . 4 . 5 3 . AOE 32 | . . 3 . . . . . . . 5 . . 12 . 1 . . . . . . . 11 . . Classes Destroyed 24 | 2 6 3 . . 3 . 1 . . . . . 2 2 . . . . . 1 4 . . . . Worker 21 | . 5 . . . . . . . 1 1 . . . . 7 . . . . 1 . . 6 . . Builder 15 | . . . . . 1 . . . . . . . . . 8 . . . . . . . 2 4 . Tunneler 6 | 2 1 . . . . . . . . . . . . . 1 . . . . . . . 1 1 . Hauler 8 | . 2 . . . . . . . 3 1 . . . . 2 . . . . . . . . . . Recycler 14 | 1 1 . . . . 2 . . 2 2 . . . . 3 . . . . . . . 2 1 . Minesweeper 1 | . . . . . . . . . . . . . . 1 . . . . . . . . . . . Mechanic 2 | . . . . . . . . . . . . . . . . . . . . . 1 . . 1 . Operator 14 | . 2 . . . . . . 9 1 1 . . . . 1 . . . . . . . . . . Drone 3 | . . . . . . . . . . . . . . 1 . . . . 2 . . . . . . Turret 2 | . . 2 . . . . . . . . . . . . . . . . . . . . . . . Watcher 8 | . 1 . . . . . . . 3 . . . . . 2 . . . . . 1 . 1 . . Swarmer 27 | . 3 3 . . . . . . . 4 . . 7 . 5 . . . . . 3 . 2 . . Saboteur 2 | . . . . . . . . . . . . . 1 . . . . . . . 1 . . . . Grunt 67 | . 7 . . . . 2 . . 6 13 . . 3 . 21 . . . . . 11 . 4 . . Brawler 3 | . . . . . . . . . 1 2 . . . . . . . . . . . . . . . Duelist 1 | . . . . . . . . . . . . . . . . . . . . . 1 . . . . Sentry 24 | . . 1 . . . 4 . 1 2 5 . . . . 4 . . . 1 . 4 . 1 1 . Demolisher 1 | . . . . . . . . . . . . . . . . . . . . 1 . . . . . Specialist 4 | . . . . . . . . . . . . . . . . . . . . . 4 . . . . Hunter 17 | . . . . . 1 . . . . 2 . . . . 4 . . . . . 2 . 8 . . Programmer 40 | . . . . . 3 . . . . 9 . . . . 5 . . . . . 16 . 4 3 . Cetus Guard 2 | . . . . . . . 2 . . . . . . . . . . . . . . . . . . Lightning 1 | . . . . . . . . . 1 . . . . . . . . . . . . . . . . Striker 2 | . . . . . . . . . . . . . 2 . . . . . . . . . . . . Subdweller 19 | . . 19 . . . . . . . . . . . . . . . . . . . . . . . Scrapoid 1 | . . . . . . . . . . . . . . . . . . . . . 1 . . . . Packrat 3 | . . . . . . . . . . . . . . . . 1 2 . . . . . . . . Savage 1 | . . . . . . . 1 . . . . . . . . . . . . . . . . . . Best Kill Streak 15 | 3 3 3 . . 2 3 1 3 4 9 . . 10 1 15 . . . 1 1 6 1 13 3 . Combat Bots Only 10 | . 3 3 . . 1 3 1 1 4 7 . . 10 1 6 . . . 1 1 6 1 8 3 . Max Kills in Single Turn 6 | 1 1 1 . . 1 1 1 2 2 3 . . 6 1 5 1 1 . 1 1 2 1 4 1 . Gunslinging 1 | . . . . . . . . . . . . . . . 1 . . . . . 1 . . . . Exploded 5 | . . 1 . . . . . . . 3 . . 5 . 1 . . . . . . . 3 . . Melee 1 | . 1 . . . . . . . . . . . . . . . . . . . . 1 1 . . Uniques/NPCs Destroyed 2 | . . . . . . . 1 . . . . . . . . . . . . . . 1 . . . A7 (-6/Cetus) A5 (-3/Lab) Combat | -11 -10 -10 -8 -8 -6 -6 -6 -6 -6 -5 -5 -5 -5 -4 -4 -4 -4 -4 -3 -3 -3 -3 -2 -1 -1 -------- Run | Yrd Mat Sub Rec Scr Fac Ext Cet Arc Hub Fac Upp Upp War Pro Fac Upp Upp Zhi Pro Res Arm Lab Res Acc Gar Hostile Shots Fired 2221 | . 41 144 . . 24 40 22 7 190 155 . . 25 . 348 . . . 2 21 393 69 523 141 76 Missed 537 | . 11 45 . . 6 14 4 3 36 30 . . 3 . 81 . . . . 5 69 18 116 66 30 Hits 1684 | . 30 99 . . 18 26 18 4 154 125 . . 22 . 267 . . . 2 16 324 51 407 75 46 Melee 8 | . . . . . . . . . 1 2 . . 1 . . . . . . . 4 . . . . Projectile 1676 | . 30 99 . . 18 26 18 4 153 123 . . 21 . 267 . . . 2 16 320 51 407 75 46 AOE 13 | . . 3 . . . . . . . . . . 5 . . . . . . 3 2 . . . . Critical Strikes 91 | . . 2 . . 3 . . 1 20 6 . . 1 . 10 . . . . 1 19 . 22 4 2 Actively Blocked 26 | . . . . . . . . . . . . . . . . . . . . . 1 . 19 4 2 Part Disruptions 10 | . . . . . . . . . 3 . . . 2 . . . . . . . 2 2 1 . . Damage Taken 25295 | . 339 1874 . . 274 269 428 144 4213 2472 . . 1095 . 3398 . . . 29 554 2193 153 5547 1372 941 Core 3548 | . 27 170 . . . 13 27 . 285 108 . . 95 . 244 . . . . 34 270 12 773 679 811 Absorbed by Shields 4777 | . . . . . . 43 104 . . . . . 21 . 1321 . . . 29 . 1768 159 1296 . 36 Reduced by Siege Mode 1630 | . . . . . . 13 . 7 104 97 . . . . 346 . . . . . 247 . 816 . . Redirected to Shielding 362 | . . . . . . . . . . . . . . . . . . . . . 100 6 95 141 20 Ignored by Resistances 9173 | . . . . . 70 7 . . 811 198 . . . . 376 . . . . . 3201 1000 3461 49 . Regen/Repaired (Parts) 2958 | . . . . . . . 91 175 33 891 . . 147 . 968 . . . . . 122 . 531 . . Core Remaining (%) 68 | 100 . . . 21 . . . . 61 . . . . 79 . . . . 78 . . 75 68 . . Volleys Fired 1029 | 3 21 133 . . 28 43 25 22 48 101 5 5 14 18 120 4 5 . 7 14 164 49 150 50 . Largest 3 | 2 2 2 . . 2 1 3 3 3 3 1 1 1 1 3 2 2 . 2 2 3 3 2 2 . Hottest 280 | 40 40 100 . . 160 . 190 150 105 158 98 98 100 38 98 60 60 . 60 65 280 120 80 142 . Shots Fired 1721 | 6 42 187 1 . 30 43 68 66 133 147 6 6 14 18 243 8 10 . 14 26 288 76 229 60 . Gun 1357 | 6 42 107 1 . 6 . 66 66 131 66 . . 2 18 223 8 10 . 14 26 274 76 179 36 . Cannon 208 | . . 46 . . . . . . . 79 6 6 4 . 12 . . . . . 14 . 17 24 . Launcher 38 | . . 22 . . 1 . . . . 2 . . 3 . 3 . . . . . . . 7 . . Special 118 | . . 12 . . 23 43 2 . 2 . . . 5 . 5 . . . . . . . 26 . . Kinetic 1040 | 6 42 . . . 2 . 61 63 131 66 . . 2 18 235 8 10 . 14 26 231 76 25 24 . Thermal 212 | . . 59 . . 4 . 5 3 . 49 6 6 1 . . . . . . . 43 . . 36 . Explosive 45 | . . 22 . . 1 . . . . . . . 5 . 5 . . . . . . . 12 . . Electromagnetic 317 | . . 106 1 . . . . . . 32 . . 3 . 3 . . . . . 1 . 171 . . Impact 64 | . . . . . 23 41 . . . . . . . . . . . . . . . . . . . Entropic 16 | . . . . . . . . . . . . . 3 . . . . . . . 13 . . . . Robot Hit Streak 42 | 4 4 30 . . 8 16 26 8 26 26 . . 6 9 24 21 24 . 6 13 25 7 42 33 . Robot Miss Streak 4 | 1 4 3 . . 2 3 4 3 3 2 . . 1 3 3 . 1 . 3 2 2 3 3 1 . Penetration Max 2 | . . . . . . . 1 1 1 1 . . 1 . 2 . . . . . 1 . 2 . . Secondary Targets 20 | . . . . . . . 1 1 3 . . . . . 8 . . . . . 6 . 1 . . Max Gunslinging Chain 1 | . . . . . . . 1 1 1 . . . . . 1 . . . . . 1 . 1 . . Shots Hit Robots 1184 | 5 49 123 . . 13 25 50 43 89 113 . . 8 10 175 4 8 . 6 17 206 30 174 36 . Core Hits 623 | 4 11 66 . . 4 2 24 20 43 55 . . 23 3 105 1 4 . 5 7 86 20 123 16 1 Critical Kills 37 | . 1 . . . . . 1 4 6 1 . . . . 6 . . . 1 1 13 . . 3 . Critical Parts Destroyed 72 | . 6 . . . 3 7 5 6 11 . . . . . 8 . . . 1 . 18 3 . 4 . Critical Strikes 130 | . 7 . . . 3 7 6 10 17 7 . . 3 . 15 . . . 2 1 38 3 3 8 . Meltdown 1 | . . . . . . . . . . 1 . . . . . . . . . . . . . . . Destroy 93 | . . . . . . . 6 10 17 . . . . . 14 . . . 2 1 32 3 . 8 . Blast 2 | . . . . . . . . . . . . . . . . . . . . . . . 2 . . Corrupt 6 | . . . . . . . . . . 6 . . . . . . . . . . . . . . . Smash 17 | . 7 . . . 3 7 . . . . . . . . . . . . . . . . . . . Sever 5 | . . . . . . . . . . . . . 3 . 1 . . . . . . . 1 . . Sunder 6 | . . . . . . . . . . . . . . . . . . . . . 6 . . . . Melee Attacks 50 | . 47 3 . . . . . . . . . . . . . . . . . . . . . . . Impact 50 | . 47 3 . . . . . . . . . . . . . . . . . . . . . . . Slashing . | . . . . . . . . . . . . . . . . . . . . . . . . . . Piercing . | . . . . . . . . . . . . . . . . . . . . . . . . . . Sneak Attacks 11 | . 11 . . . . . . . . . . . . . . . . . . . . . . . . Combat Hostiles 2 | . 2 . . . . . . . . . . . . . . . . . . . . . . . . Follow-up Attacks . | . . . . . . . . . . . . . . . . . . . . . . . . . . Damage Inflicted 44196 | 64 1779 2577 . . 1227 1655 1424 1352 2776 4703 . . 2413 270 8331 168 204 . 174 348 6610 1439 5471 1163 48 Guns 22847 | 64 264 1399 . . 97 . 1424 1328 2633 1241 . . 25 270 6162 168 204 . 174 327 5566 342 400 759 . Cannons 5298 | . . 642 . . . . . . . 2410 . . 260 . 137 . . . . . 1040 . 405 404 . Explosions 9924 | . . 536 . . 346 . . . 89 1026 . . 1887 . 1674 . . . . . . . 4366 . . Melee 1515 | . 1515 . . . . . . . . . . . . . . . . . . . . . . . . Ramming 1478 | . . . . . 6 15 . 24 54 26 . . . . 131 . . . . 21 4 1097 52 . 48 Kinetic 19936 | 64 264 . . . . . 1289 1308 2633 1241 . . 25 270 6299 168 204 . 174 327 4380 342 544 404 . Thermal 6498 | . . 703 . . 383 . 135 20 . 1220 . . 78 . 184 . . . . . 1186 . 1830 759 . Explosive 6551 | . . 475 . . 60 . . . . 695 . . 1435 . 1350 . . . . . . . 2536 . . Electromagnetic 3784 | . . 1399 . . . . . . 89 1521 . . 374 . 140 . . . . . . . 261 . . Impact 3933 | . 1515 . . . 778 1640 . . . . . . . . . . . . . . . . . . . Slashing 716 | . . . . . . . . . . . . . 241 . 227 . . . . . . . 248 . . Piercing . | . . . . . . . . . . . . . . . . . . . . . . . . . . Entropic 1300 | . . . . . . . . . . . . . 260 . . . . . . . 1040 . . . . Highest Corruption 39 | . . 6 6 . 2 . 3 6 39 23 23 23 23 4 2 2 . . . . 12 12 15 . . Average Corruption 7 | . . 6 6 . 1 . 3 2 9 7 23 23 16 4 1 1 . . . . 8 12 5 . . Corruption Purged 13 | . . . . . 2 . . 9 . . . . . . . 2 . . . . . . . . . Corruption Blocked 4 | . . . . . . . . . . . . . . . . . . . . . . . . 4 . Effects 479 | . . 116 28 . 8 . 28 5 26 47 38 20 4 16 18 2 . . . . 67 30 26 . . Message Errors 111 | . . 29 3 . . . 9 2 4 13 15 3 . 4 6 . . . . . 10 4 9 . . Matter Fused 99 | . . 23 6 . 3 . 7 . 11 7 7 5 1 2 3 1 . . . . 12 7 4 . . Heat Flow Errors 65 | . . 17 2 . . . 2 1 1 6 6 4 1 4 3 1 . . . . 13 2 2 . . Energy Discharges 57 | . . 14 4 . 2 . 1 . 2 6 3 1 1 3 1 . . . . . 11 7 1 . . Parts Rejected 3 | . . . . . . . . . . 1 . . . . . . . . . . 1 . 1 . . Parts Fused 6 | . . 1 1 . . . 1 . . . 1 1 . . . . . . . . 1 . . . . Data Loss (minor) 57 | . . 10 8 . 2 . 3 1 1 9 3 2 . 1 3 . . . . . 6 3 5 . . Data Loss (major) 29 | . . 10 2 . . . . 1 1 2 2 3 . . . . . . . . 4 2 2 . . Misfires 21 | . . 6 1 . . . 3 . 1 . 1 1 1 1 . . . . . . 3 1 2 . . Alerts 15 | . . 6 1 . 1 . 1 . 1 1 . . . 1 1 . . . . . . 2 . . . Misdirections 2 | . . . . . . . . . 2 . . . . . . . . . . . . . . . . Weapon Failures 14 | . . . . . . . 1 . 2 2 . . . . 1 . . . . . 6 2 . . . Overload Shots . | . . . . . . . . . . . . . . . . . . . . . . . . . . Overflow Damage 2678 | . 667 9 . . 541 581 . 11 . 202 . . 113 . 70 . . . . . 174 23 287 . . Projectiles 1477 | . . 9 . . 485 581 . . . 90 . . 79 . 16 . . . . . 174 . 43 . . Explosions 500 | . . . . . 56 . . . . 112 . . 34 . 54 . . . . . . . 244 . . Melee 701 | . 667 . . . . . . 11 . . . . . . . . . . . . . 23 . . . Knockbacks 25 | . 5 . . . 5 2 . . . . . . . . 2 . . . . . . 8 3 . . Impact 20 | . 5 . . . 5 2 . . . . . . . . . . . . . . . 8 . . . Kinetic 5 | . . . . . . . . . . . . . . . 2 . . . . . . . 3 . . Secondary . | . . . . . . . . . . . . . . . . . . . . . . . . . . Self-Inflicted Damage 534 | . . 121 . . 59 . . 1 98 157 . . . . . . . . . . . . 76 . 22 Shots 10 | . . 3 . . 1 . . . 1 4 . . . . . . . . . . . . 1 . . Rammed 152 | . . . . . 1 2 . 2 8 5 . . . . 13 . . . . 4 1 102 5 . 9 Targets Rammed 155 | . . . . . 1 2 . 2 8 6 . . . . 13 . . . . 4 1 103 6 . 9 Kicked . | . . . . . . . . . . . . . . . . . . . . . . . . . . Crushed 3 | . . . . . . . . . . 1 . . . . . . . . . . . 1 1 . . Highest Temperature 554 | . . 294 183 . 158 . 261 314 188 322 240 250 96 235 185 250 . . 3 17 554 223 185 48 . Average Temperature 83 | . . 90 68 . 73 . 61 96 53 98 73 77 37 103 25 81 . . 2 10 129 27 111 21 . Received Heat Transfer 3332 | . 147 611 . . . 75 44 18 537 540 . . 27 . 619 . . . 4 63 509 . 120 18 . Effects 16 | . . 1 . . . . 1 2 . 5 . . . . . . . . . . 7 . . . . Energy Bleed 6 | . . 1 . . . . 1 1 . 2 . . . . . . . . . . 1 . . . . Interference 6 | . . . . . . . . . . 3 . . . . . . . . . . 3 . . . . Short Circuit 1 | . . . . . . . . . . . . . . . . . . . . . 1 . . . . Damage (minor) 2 | . . . . . . . . 1 . . . . . . . . . . . . 1 . . . . Damage (core) 1 | . . . . . . . . . . . . . . . . . . . . . 1 . . . . Siege Activations 58 | . . . . . 3 3 2 1 6 11 . . . . 13 . . . . . 14 . 5 . . Total Turns 1648 | . . . . . 7 29 38 4 153 192 . . . . 297 . . . . . 707 . 221 . . Longest Duration 398 | . . . . . 3 19 28 4 55 50 . . . . 59 . . . . . 398 . 96 . . Martial Activations . | . . . . . . . . . . . . . . . . . . . . . . . . . . Shielding Activations . | . . . . . . . . . . . . . . . . . . . . . . . . . . Robots Disrupted 17 | . . . . . . . . . . . . . . . . . . . . . . . 17 . . Combat Hostiles 11 | . . . . . . . . . . . . . . . . . . . . . . . 11 . . Robots Corrupted 28 | . 7 5 . . 2 5 . 1 . 7 . . . . 1 . . . . . . . . . . Combat Hostiles 24 | . 5 5 . . 2 4 . . . 7 . . . . 1 . . . . . . . . . . Parts Fried 45 | . 11 7 . . 1 10 . 2 . 12 . . . . 2 . . . . . . . . . . Impact Corruptions 53 | . 21 . . . 15 11 . 2 . . . . . . . . . . . . . 3 1 . . Robots Melted 3 | . . . . . 1 . . . . 2 . . . . . . . . . . . . . . . Combat Hostiles 3 | . . . . . 1 . . . . 2 . . . . . . . . . . . . . . . Parts Melted 23 | . . 3 . . . . 1 . . 6 . . 1 . . . . . . . 11 . . 1 . Heat Transferred 7362 | . . 901 . . 375 . 300 37 . 1750 . . 50 . 150 . . . . . 1550 . 1250 999 . Parts Sabotaged . | . . . . . . . . . . . . . . . . . . . . . . . . . . Parts Stolen . | . . . . . . . . . . . . . . . . . . . . . . . . . . Parts Stripped . | . . . . . . . . . . . . . . . . . . . . . . . . . . Power Chain Reactions 14 | . . 1 . . . . . . 1 . . . 2 . . . . . . . . . 10 . . Alert | -11 -10 -10 -8 -8 -6 -6 -6 -6 -6 -5 -5 -5 -5 -4 -4 -4 -4 -4 -3 -3 -3 -3 -2 -1 -1 ------- Run | Yrd Mat Sub Rec Scr Fac Ext Cet Arc Hub Fac Upp Upp War Pro Fac Upp Upp Zhi Pro Res Arm Lab Res Acc Gar Maximum Alert Level 4 | . . . . . . 3 2 1 2 3 . . . . 4 . . . . 1 2 . 2 1 1 Low Security (%) 74 | 100 100 . 100 . 100 57 23 99 81 29 . . . . 53 . . . . 54 58 . 71 . . Level 1 14 | . . . . . . 6 71 . 5 31 . . . . 14 . . . . 45 26 . 13 100 100 Level 2 7 | . . . . . . 21 5 . 12 27 . . . . 8 . . . . . 14 . 14 . . Level 3 3 | . . . . . . 14 . . . 11 . . . . 18 . . . . . . . . . . Level 4 . | . . . . . . . . . . . . . . . 4 . . . . . . . . . . Level 5 . | . . . . . . . . . . . . . . . . . . . . . . . . . . High Security . | . . . . . . . . . . . . . . . . . . . . . . . . . . Max Security . | . . . . . . . . . . . . . . . . . . . . . . . . . . Peak Influence 1317 | 10 77 . 131 . 87 762 422 238 639 958 . . . . 1317 . . . . 340 566 . 563 358 248 Initial 412 | . . . 131 . . . 412 110 . 305 . . . . 150 . . . . 300 30 . . 337 238 Average 139 | 1 14 . 17 . 10 264 276 10 157 392 . . . . 372 . . . . 183 188 . 163 314 237 Influence Increases 12042 | 15 429 340 . . 218 1109 749 296 1227 1497 . . 485 10 2015 . . . 30 569 1377 . 1383 263 30 Destroy 0b10 Robot/C 4880 | . 200 120 . . 80 480 340 80 340 700 . . 260 . 760 . . . 20 20 860 . 540 80 . Destroy 0b10 Robot/NC 485 | 15 60 . . . 5 25 10 45 70 25 . . . 10 95 . . . 10 5 10 . 65 35 . Destroy Leader 926 | . 56 10 . . 40 66 10 . 90 172 . . . . 168 . . . . 10 182 . 102 20 . Allied During Kill 1013 | . . . . . . 437 360 78 89 . . . . . . . . . . . 14 . 35 . . Trap Triggered on 0b10 10 | . . . . . . . 10 . . . . . . . . . . . . . . . . . . Successful Hack 388 | . . . . . 12 21 . . . 122 . . . . 58 . . . . . 42 . 68 35 30 Select Force Hacks 50 | . . . . . . . . . 50 . . . . . . . . . . . . . . . . Disable Machine 1065 | . . . . . 45 60 . 75 285 165 . . . . 240 . . . . 15 120 . 45 15 . Anti-Garrison Action 350 | . . . . . . . . . . . . . . . 150 . . . . 200 . . . . . Destroy Structure 1495 | . 8 . . . 36 20 19 18 138 268 . . . . 364 . . . . 4 134 . 438 48 . Advance Influence 450 | . . . . . . . . . . . . . . . 150 . . . . 300 . . . . . Partial Spotted 15 | . . . . . . . . . . . . . . . . . . . . . . . 15 . . Lose Combat Pursuer 915 | . 105 210 . . . . . . 165 45 . . 225 . 30 . . . . 15 15 . 75 30 . Influence Decreases 11814 | 15 429 66 274 . 218 373 1208 573 603 1169 695 257 114 381 706 937 372 . 30 510 901 535 820 528 100 Entered New Map 3134 | . . . 143 . . . 324 167 . 319 353 50 . 371 . 485 72 . . . 29 535 . 226 60 Time Decay 6924 | 15 409 47 131 . 218 372 534 346 439 660 342 207 104 10 626 452 300 . 30 490 470 . 500 222 . Lost Part 599 | . 20 19 . . . . 10 . 50 40 . . 10 . 80 . . . . 20 20 . 210 80 40 Lost Ally 707 | . . . . . . 1 340 60 114 . . . . . . . . . . . 82 . 110 . . Purge Threat 450 | . . . . . . . . . . 150 . . . . . . . . . . 300 . . . . Squads Dispatched 73 | . 3 . . . 7 4 . . 8 6 . . . . 15 . . . . 7 11 . 9 3 . Investigation 21 | . 2 . . . 4 2 . . 2 2 . . . . 5 . . . . 2 1 . 1 . . Extermination 24 | . . . . . 3 . . . 2 3 . . . . 3 . . . . . 6 . 5 2 . Reinforcement 23 | . 1 . . . . 2 . . 4 1 . . . . 4 . . . . 5 4 . 2 . . Assault 2 | . . . . . . . . . . . . . . . 2 . . . . . . . . . . Garrison 1 | . . . . . . . . . . . . . . . 1 . . . . . . . . . . Intercept 2 | . . . . . . . . . . . . . . . . . . . . . . . 1 1 . Searches Triggered . | . . . . . . . . . . . . . . . . . . . . . . . . . . Unchained Authorized 2 | . . . . . . . . . 1 . . . . . 1 . . . . . . . . . . Construction Impeded 3 | . . . . . . . . . . . . . . . 1 . . . . 1 . . 1 . . Haulers Reinforced 3 | . . . . . . . . . 1 . . . . . 1 . . . . 1 . . . . . Active Scanning Responses . | . . . . . . . . . . . . . . . . . . . . . . . . . . Cargo Convoy Interrupts 1 | . . . . . . . . . . . . . . . . . . . . . . . 1 . . Stealth | -11 -10 -10 -8 -8 -6 -6 -6 -6 -6 -5 -5 -5 -5 -4 -4 -4 -4 -4 -3 -3 -3 -3 -2 -1 -1 --------- Run | Yrd Mat Sub Rec Scr Fac Ext Cet Arc Hub Fac Upp Upp War Pro Fac Upp Upp Zhi Pro Res Arm Lab Res Acc Gar Distress Signals 29 | . 2 . . . . 2 2 . 2 . . . . . 4 . . . . 10 3 . 4 . . Communications Jammed 51 | . . . . . . . . . . . . . . . . . . . . . . . 51 . . Distress Signals 30 | . . . . . . . . . . . . . . . . . . . . . . . 30 . . Times Spotted 435 | . 24 30 . . 9 21 11 15 36 37 . . 41 1 53 . . . 3 12 54 1 53 21 13 Peak Tracking Total 13 | . 4 3 . . 2 3 5 2 13 3 . . 13 1 6 . . . 1 4 5 1 9 9 12 Tactical Retreats 33 | . 5 3 . . . . . . 6 3 . . 8 . 1 . . . . 1 1 . 3 2 . Traps | -11 -10 -10 -8 -8 -6 -6 -6 -6 -6 -5 -5 -5 -5 -4 -4 -4 -4 -4 -3 -3 -3 -3 -2 -1 -1 ------- Run | Yrd Mat Sub Rec Scr Fac Ext Cet Arc Hub Fac Upp Upp War Pro Fac Upp Upp Zhi Pro Res Arm Lab Res Acc Gar Traps Triggered 14 | . 1 3 . . 2 . . . 1 . . . . . 3 . . . . 1 . . 2 . 1 Indirectly 1 | . . . . . . . . . . . . . . . 1 . . . . . . . . . . Trap Hack Attempts . | . . . . . . . . . . . . . . . . . . . . . . . . . . Triggered . | . . . . . . . . . . . . . . . . . . . . . . . . . . Disarmed . | . . . . . . . . . . . . . . . . . . . . . . . . . . Reprogrammed . | . . . . . . . . . . . . . . . . . . . . . . . . . . Reused 2 | . . . . . . . 1 . . . . . 1 . . . . . . . . . . . . Traps Extracted . | . . . . . . . . . . . . . . . . . . . . . . . . . . Installed 3 | . . . . . . . 1 . . . . . 2 . . . . . . . . . . . . Triggered 2 | . . . . . . . 1 . . . . . 1 . . . . . . . . . . . . Most Traps Carried 3 | . . 2 2 3 3 3 3 2 2 2 2 2 2 . . . . . . . . . . . . Machines | -11 -10 -10 -8 -8 -6 -6 -6 -6 -6 -5 -5 -5 -5 -4 -4 -4 -4 -4 -3 -3 -3 -3 -2 -1 -1 ---------- Run | Yrd Mat Sub Rec Scr Fac Ext Cet Arc Hub Fac Upp Upp War Pro Fac Upp Upp Zhi Pro Res Arm Lab Res Acc Gar Machines Disabled 84 | . . 4 . . 3 4 . 5 19 11 . . 1 . 17 . . . . 1 8 7 3 1 . Max in Single Turn 5 | . . 3 . . 2 1 . 1 5 3 . . 1 . 4 . . . . 1 1 1 1 1 . Garrison Access 6 | . . . . . 1 . . . . 1 . . . . 2 . . . . 1 . . 1 . . Network Hub 2 | . . . . . . . . . 2 . . . . . . . . . . . . . . . . Energy Cycler 1 | . . . . . . . . . . . . . . . . . . . . . . . . 1 . Machines Repaired . | . . . . . . . . . . . . . . . . . . . . . . . . . . Machines Dismantled 1 | . . . . . . . . . . . . . 1 . . . . . . . . . . . . Machines Sabotaged 1 | . . . . . . . . . 1 . . . . . . . . . . . . . . . . Overloaded Fab Kills . | . . . . . . . . . . . . . . . . . . . . . . . . . . Hacking | -11 -10 -10 -8 -8 -6 -6 -6 -6 -6 -5 -5 -5 -5 -4 -4 -4 -4 -4 -3 -3 -3 -3 -2 -1 -1 --------- Run | Yrd Mat Sub Rec Scr Fac Ext Cet Arc Hub Fac Upp Upp War Pro Fac Upp Upp Zhi Pro Res Arm Lab Res Acc Gar Machines Accessed 76 | . . 3 . 5 7 9 1 . 1 13 3 . 1 . 10 1 . 4 . 2 6 . 6 3 1 Terminals 26 | . . . . . . 8 1 . 1 5 . . . . 3 . . . . . 3 . 2 2 1 Fabricators 5 | . . . . . . . . . . 2 . . . . 2 . . . . . . . 1 . . Repair Stations 7 | . . . . . 1 . . . . 1 . . . . 1 . . . . . 2 . 2 . . Recycling Units 9 | . . . . . 4 1 . . . 1 . . . . 2 . . . . . 1 . . . . Scanalyzers 6 | . . . . . 1 . . . . 3 . . . . 1 . . . . 1 . . . . . Garrison Access 6 | . . . . . 1 . . . . 1 . . . . 1 . . . . 1 . . 1 1 . Total Hacks 245 | . . 3 . 32 14 12 1 . 1 51 7 . 1 . 31 1 . 17 . 6 22 . 33 9 4 Successful 161 | . . 3 . 32 8 6 . . 1 27 7 . 1 . 23 1 . 17 . 4 14 . 13 2 2 Failed 84 | . . . . . 6 6 1 . . 24 . . . . 8 . . . . 2 8 . 20 7 2 Catastrophic 17 | . . . . . . 4 . . . 4 . . . . . . . . . . . . 6 3 . Database Lockouts . | . . . . . . . . . . . . . . . . . . . . . . . . . . Manual 47 | . . . . . 7 1 . . 1 5 . . . . 11 . . . . 1 7 . 7 5 2 Terminals 77 | . . . . . . 11 1 . 1 12 . . . . 12 . . . . . 17 . 13 6 4 Fabricators 19 | . . . . . . . . . . 8 . . . . 6 . . . . . . . 5 . . Repair Stations 31 | . . . . . 3 . . . . 7 . . . . 6 . . . . . 4 . 11 . . Recycling Units 12 | . . . . . 7 1 . . . 1 . . . . 2 . . . . . 1 . . . . Scanalyzers 26 | . . . . . 2 . . . . 18 . . . . 3 . . . . 3 . . . . . Garrison Access 19 | . . . . . 2 . . . . 5 . . . . 2 . . . . 3 . . 4 3 . Terminal Hacks 87 | . . 3 . 32 . 5 . . . 5 7 . 1 . 5 1 . 17 . . 8 . 2 . 1 Record 41 | . . . . 31 . . . . . . 5 . . . . . . 5 . . . . . . . Part Schematic 8 | . . . . . . . . . . 2 . . . . . . . 4 . . 1 . 1 . . Robot Analysis 4 | . . . . . . . . . . . . . . . . . . 4 . . . . . . . Prototype ID Bank 5 | . . . . . . . . . . . . . . . . . . 4 . . 1 . . . . Open Door 10 | . . 1 . . . 5 . . . . 2 . 1 . . 1 . . . . . . . . . Branch Access Points 1 | . . . . . . . . . . . . . . . 1 . . . . . . . . . . Terminal Index 1 | . . . . . . . . . . . . . . . . . . . . . . . 1 . . Fabricator Index 1 | . . . . . . . . . . . . . . . 1 . . . . . . . . . . Alert Level 5 | . . . . . . . . . . 2 . . . . 2 . . . . . 1 . . . . Unreport Threat 3 | . . . . . . . . . . 1 . . . . . . . . . . 2 . . . . Locate Traps 2 | . . . . . . . . . . . . . . . . . . . . . 2 . . . . Hauler Manifests 1 | . . . . . . . . . . . . . . . 1 . . . . . . . . . . Zone Layout 1 | . . . . . . . . . . . . . . . . . . . . . 1 . . . . Patrol Navigation 1 | . . . . . . . . . . . . . . . . . . . . . . . . . 1 Proto ID Catalog 2 | . . 1 . 1 . . . . . . . . . . . . . . . . . . . . . Release Object 1 | . . 1 . . . . . . . . . . . . . . . . . . . . . . . Fabricator Hacks 8 | . . . . . . . . . . 2 . . . . 4 . . . . . . . 2 . . Load Schematic 4 | . . . . . . . . . . 1 . . . . 2 . . . . . . . 1 . . Build 4 | . . . . . . . . . . 1 . . . . 2 . . . . . . . 1 . . Repair Station Hacks 22 | . . . . . 2 . . . . 4 . . . . 4 . . . . . 4 . 8 . . Scan Component 12 | . . . . . 2 . . . . 2 . . . . 2 . . . . . 2 . 4 . . Repair 10 | . . . . . . . . . . 2 . . . . 2 . . . . . 2 . 4 . . Recycling Unit Hacks . | . . . . . . . . . . . . . . . . . . . . . . . . . . Scanalyzer 19 | . . . . . 1 . . . . 13 . . . . 2 . . . . 3 . . . . . Insert Component 10 | . . . . . 1 . . . . 7 . . . . 1 . . . . 1 . . . . . Analyze 6 | . . . . . . . . . . 6 . . . . . . . . . . . . . . . Retrieve Study 3 | . . . . . . . . . . . . . . . 1 . . . . 2 . . . . . Garrison Access Hacks 5 | . . . . . 1 . . . . 1 . . . . 1 . . . . . . . 1 1 . Unlock Access 1 | . . . . . . . . . . . . . . . . . . . . . . . . 1 . Seal Access 4 | . . . . . 1 . . . . 1 . . . . 1 . . . . . . . 1 . . Unauthorized Hacks 20 | . . . . . 4 1 . . 1 2 . . . . 7 . . . . 1 2 . . 1 1 Terminals 10 | . . . . . . . . . 1 1 . . . . 5 . . . . . 1 . . 1 1 Track 1 | . . . . . . . . . . . . . . . . . . . . . 1 . . . . Assimilate 2 | . . . . . . . . . . 1 . . . . 1 . . . . . . . . . . Botnet 2 | . . . . . . . . . . . . . . . 1 . . . . . . . . 1 . Disrupt 1 | . . . . . . . . . . . . . . . . . . . . . . . . . 1 Skim 3 | . . . . . . . . . . . . . . . 3 . . . . . . . . . . Sabotage 1 | . . . . . . . . . 1 . . . . . . . . . . . . . . . . Fabricators . | . . . . . . . . . . . . . . . . . . . . . . . . . . Repair Stations . | . . . . . . . . . . . . . . . . . . . . . . . . . . Recycling Units 9 | . . . . . 4 1 . . . 1 . . . . 2 . . . . . 1 . . . . Fedlink 7 | . . . . . 4 . . . . 1 . . . . 2 . . . . . . . . . . Scrapoids 2 | . . . . . . 1 . . . . . . . . . . . . . . 1 . . . . Scanalyzers . | . . . . . . . . . . . . . . . . . . . . . . . . . . Garrison Access 1 | . . . . . . . . . . . . . . . . . . . . 1 . . . . . Jam 1 | . . . . . . . . . . . . . . . . . . . . 1 . . . . . Data Cores Recovered 2 | . 1 . . . . . . . 1 . . . . . . . . . . . . . . . . Used . | . . . . . . . . . . . . . . . . . . . . . . . . . . Hacking Detections 36 | . . . . . 4 5 1 . . 10 . . . . 6 . . . . 1 1 . 4 3 1 Full Trace Events 5 | . . . . . . 1 . . . 1 . . . . 2 . . . . . . . 1 . . Feedback Events . | . . . . . . . . . . . . . . . . . . . . . . . . . . Feedback Blocked . | . . . . . . . . . . . . . . . . . . . . . . . . . . Robot Schematics Acquired . | . . . . . . . . . . . . . . . . . . . . . . . . . . Robots Built . | . . . . . . . . . . . . . . . . . . . . . . . . . . Authchips . | . . . . . . . . . . . . . . . . . . . . . . . . . . Time . | . . . . . . . . . . . . . . . . . . . . . . . . . . Total Robot Build Rating . | . . . . . . . . . . . . . . . . . . . . . . . . . . Part Schematics Acquired 53 | . . . . . 3 13 . . 3 13 1 1 5 2 3 . 1 5 . 1 1 . 1 . . Parts Built 5 | . . . . . . . . . . 1 . . . . 3 . . . . . . . 1 . . Authchips . | . . . . . . . . . . . . . . . . . . . . . . . . . . Time 418 | . . . . . . . . . . 46 . . . . 150 . . . . . . . 222 . . Total Part Build Rating 41 | . . . . . . . . . . 9 . . . . 23 . . . . . . . 9 . . Part Studies Acquired 3 | . . . . . . . . . . . . . . . 1 . . . . 2 . . . . . Parts Repaired 10 | . . . . . . . . . . 2 . . . . 2 . . . . . 2 . 4 . . Time 463 | . . . . . . . . . . 108 . . . . 91 . . . . . 134 . 130 . . Parts Recycled . | . . . . . . . . . . . . . . . . . . . . . . . . . . Recycled Matter . | . . . . . . . . . . . . . . . . . . . . . . . . . . Retrieved Matter . | . . . . . . . . . . . . . . . . . . . . . . . . . . Retrieved Components . | . . . . . . . . . . . . . . . . . . . . . . . . . . Parts Scanalyzed 6 | . . . . . 1 . . . . 5 . . . . . . . . . . . . . . . Part Schematics Acquired 5 | . . . . . . . . . . 5 . . . . . . . . . . . . . . . Parts Damaged 1 | . . . . . . . . . . 1 . . . . . . . . . . . . . . . Bothacking | -11 -10 -10 -8 -8 -6 -6 -6 -6 -6 -5 -5 -5 -5 -4 -4 -4 -4 -4 -3 -3 -3 -3 -2 -1 -1 ------------ Run | Yrd Mat Sub Rec Scr Fac Ext Cet Arc Hub Fac Upp Upp War Pro Fac Upp Upp Zhi Pro Res Arm Lab Res Acc Gar Used RIF Installer . | . . . . . . . . . . . . . . . . . . . . . . . . . . Robots Hacked 3 | . . . . . . . . . . . . . . . . . . . . . . . 3 . . Non-combat 1 | . . . . . . . . . . . . . . . . . . . . . . . 1 . . Combat 2 | . . . . . . . . . . . . . . . . . . . . . . . 2 . . Robot Hacks Applied 3 | . . . . . . . . . . . . . . . . . . . . . . . 3 . . parse_system 3 | . . . . . . . . . . . . . . . . . . . . . . . 3 . . Relay Couplers Released 1 | . . . . . . . . . . . . . . . 1 . . . . . . . . . . Machine Destruction 1 | . . . . . . . . . . . . . . . 1 . . . . . . . . . . Fabnet Peak Effective % . | . . . . . . . . . . . . . . . . . . . . . . . . . . Robots Rewired 29 | . . . . . . 15 . . . . . . . . . . . . . . 4 . 10 . . Allies Hacked 5 | . . . . . . . . . . . . . . . . . . . . . 2 . 3 . . Hacks Repelled 1 | . . . . . . . . . . . . . . . . . . . . . . . 1 . . Allies | -11 -10 -10 -8 -8 -6 -6 -6 -6 -6 -5 -5 -5 -5 -4 -4 -4 -4 -4 -3 -3 -3 -3 -2 -1 -1 -------- Run | Yrd Mat Sub Rec Scr Fac Ext Cet Arc Hub Fac Upp Upp War Pro Fac Upp Upp Zhi Pro Res Arm Lab Res Acc Gar Total Allies 56 | . . . . . . 31 6 . . . . . . . . . . . . . 9 . 10 . . Largest Group 28 | . . . . . . 28 27 13 7 . . . . . . . . . . . 5 . 2 . . Highest-Rated Group 972 | . . . . . . 886 972 520 328 . . . . . . . . . . . 320 . 357 . . Highest-Rated Ally 183 | . . . . . . 159 159 129 129 . . . . . . . . . . . 64 . 183 . . Initial UFD Resources 74 | . . . . . 22 40 37 37 37 41 51 51 51 54 54 68 68 68 72 72 72 69 72 74 74 Total Orders 20 | . . . . . . 3 5 1 5 . . . . . . . . . . . 1 . 5 . . STAY 13 | . . . . . . 2 3 1 3 . . . . . . . . . . . 1 . 3 . . FOLLOW 7 | . . . . . . 1 2 . 2 . . . . . . . . . . . . . 2 . . Ally Attacks 375 | . . . . . . 136 107 26 54 . . . . . . . . . . . 15 . 37 . . Total Damage 9764 | . . . . . . 3148 1898 589 1248 . . . . . . . . . . . 738 . 2143 . . Kills 71 | . . . . . . 23 19 6 11 . . . . . . . . . . . 2 . 10 . . Allies Corrupted 2 | . . . . . . . . . . . . . . . . . . . . . 2 . . . . Allies Melted 1 | . . . . . . 1 . . . . . . . . . . . . . . . . . . . Intel | -11 -10 -10 -8 -8 -6 -6 -6 -6 -6 -5 -5 -5 -5 -4 -4 -4 -4 -4 -3 -3 -3 -3 -2 -1 -1 ------- Run | Yrd Mat Sub Rec Scr Fac Ext Cet Arc Hub Fac Upp Upp War Pro Fac Upp Upp Zhi Pro Res Arm Lab Res Acc Gar Active Infowar (turns) 44482 | 15 2911 35 . 8422 1740 2263 1507 9446 1182 2475 769 524 730 639 2142 1139 724 239 765 1294 2523 630 1788 460 120 Optics 11949 | . . . . 131 . . . . . . . . . . 2138 1139 724 239 765 1294 2521 630 1788 460 120 Sensors 17576 | . . . . 243 1633 1798 . . 1006 1589 769 510 730 639 1581 1127 721 230 744 1271 2013 48 924 . . IFF 967 | . . . . 967 . . . . . . . . . . . . . . . . . . . . . Terrain 241 | . . . . 241 . . . . . . . . . . . . . . . . . . . . . Structural 5363 | . . . . 199 109 3 . . 77 59 . 14 . . 238 1098 720 230 730 322 591 . 973 . . Traps 20912 | . . . . 211 550 2263 1507 9446 1182 2408 . . . . 202 . . . . 1144 252 . 1322 425 . Seismic 3643 | 15 2911 35 . . . . . . . . . . . . . . . . . . . . 147 457 78 Decoding 1399 | . . . . 1399 . . . . . . . . . . . . . . . . . . . . . Machine Analysis 525 | . . . . . . . . . . . . . . . . . . . . . . . . 405 120 Triangulation 234 | . . . . 234 . . . . . . . . . . . . . . . . . . . . . Cloaking 2443 | . . . . . . . . . . . . . 18 . . 627 718 223 729 . 88 . 2 38 . Spoofing 1975 | . . . . 1975 . . . . . . . . . . . . . . . . . . . . . Jamming 3030 | . . . . 2362 . . . . . . . . . . . . . . . . . . 668 . . ECM 460 | . . . . 460 . . . . . . . . . . . . . . . . . . . . . Robot Analysis Total 4 | . . . . . . . . . . . . . . . . . . 4 . . . . . . . Derelict Logs Recovered 10 | . . 2 . 2 . . . . . . 1 2 . 1 . 1 1 . . . . . . . . Drone Launches . | . . . . . . . . . . . . . . . . . . . . . . . . . . Drone Recoveries . | . . . . . . . . . . . . . . . . . . . . . . . . . . Exploration | -11 -10 -10 -8 -8 -6 -6 -6 -6 -6 -5 -5 -5 -5 -4 -4 -4 -4 -4 -3 -3 -3 -3 -2 -1 -1 ------------- Run | Yrd Mat Sub Rec Scr Fac Ext Cet Arc Hub Fac Upp Upp War Pro Fac Upp Upp Zhi Pro Res Arm Lab Res Acc Gar Turns Passed 82831 | 89 2911 6135 1056 38906 1784 2263 1507 9446 1316 2492 769 524 1112 655 2142 1139 724 239 765 1294 2565 630 1788 460 120 Spaces Moved 28679 | 57 1011 3490 452 10648 749 1012 700 733 607 997 493 333 620 385 850 727 368 141 418 707 954 216 1010 818 183 Core 7965 | 3 . . . 7113 . . . 587 . . . . . . . . . . . . . . 16 63 183 Treads 11791 | 7 . . . 779 749 1012 700 146 607 997 493 333 620 385 850 727 368 141 418 707 954 216 582 . . Legs 540 | . . . . 540 . . . . . . . . . . . . . . . . . . . . . Wheels 6940 | 47 1011 3490 452 1940 . . . . . . . . . . . . . . . . . . . . . Hover 64 | . . . . 49 . . . . . . . . . . . . . . . . . . 15 . . Flight 1379 | . . . . 227 . . . . . . . . . . . . . . . . . . 397 755 . Fastest Speed 25 | 50 90 80 230 66 160 160 160 160 160 152 152 152 152 152 152 152 152 152 170 162 145 145 31 25 50 Average Speed 252 | 95 95 120 230 365 209 174 160 1233 160 180 152 152 152 152 152 152 152 157 170 169 148 145 102 31 50 Slowest Speed 1500 | 160 105 230 230 1000 240 240 160 1500 240 240 152 152 225 152 152 152 152 170 170 170 162 152 300 50 50 Overloaded Moves 1 | . . . . 1 . . . . . . . . . . . . . . . . . . . . . Propulsion Burnouts . | . . . . . . . . . . . . . . . . . . . . . . . . . . Robots Hopped 12 | . . . . . . . . . . . . . . . . . . . . . . . 9 3 . Potential Cave-ins 7 | . . . . . . . . . . . . . 5 . 2 . . . . . . . . . . Cave-ins Triggered 1 | . . . . . . . . . . . . . 1 . . . . . . . . . . . . Teleports 2 | . . . . . . . . . . . . . . . . . . . . . . . 1 1 . Exploration Rate (%) 55 | 3 96 91 47 90 17 95 57 85 39 29 77 51 67 55 30 89 60 61 61 21 59 95 22 19 24 Regions Visited 25 Branch Regions 17 Pre-discovered Areas 15 | . . . . 7 1 . . . . . 1 2 . 1 . . . 3 . . . . . . . Known Exits Taken 21 | . . . . 1 1 1 1 1 1 1 1 1 1 1 1 1 1 1 1 1 1 1 1 1 . Unknown Exits Taken 4 | 1 1 1 1 . . . . . . . . . . . . . . . . . . . . . . Scrap Searched 33 | . . 16 . 5 . . . . . . 2 3 . 3 . 3 1 . . . . . . . . Spaces Dug 99 | . 7 1 . . 11 5 . . . 5 3 4 . 1 22 9 . . 4 . 14 . 3 10 . Terrain Destroyed 1128 | . 7 76 . . 58 7 32 21 196 149 6 6 38 16 199 11 6 . 20 5 73 8 169 25 . Melee 7 | . 7 . . . . . . . . . . . . . . . . . . . . . . . . Projectile 438 | . . 12 . . 14 7 32 21 34 18 6 6 4 16 119 11 6 . 20 4 71 8 8 21 . AOE 674 | . . 64 . . 44 . . . 162 131 . . 34 . 80 . . . . . . . 155 4 . Terrain Rammed . | . . . . . . . . . . . . . . . . . . . . . . . . . . Walls Destroyed . | . . . . . . . . . . . . . . . . . . . . . . . . . . Machines Disabled . | . . . . . . . . . . . . . . . . . . . . . . . . . . Actions | -11 -10 -10 -8 -8 -6 -6 -6 -6 -6 -5 -5 -5 -5 -4 -4 -4 -4 -4 -3 -3 -3 -3 -2 -1 -1 --------- Run | Yrd Mat Sub Rec Scr Fac Ext Cet Arc Hub Fac Upp Upp War Pro Fac Upp Upp Zhi Pro Res Arm Lab Res Acc Gar Total 37353 | 80 2832 5210 470 10690 931 1459 1051 1078 837 1543 509 344 767 437 1469 750 523 159 460 770 1871 450 1495 957 211 Wait 6285 | 4 1721 1473 . . 130 308 215 303 131 331 4 . 68 28 409 6 146 . 26 21 624 34 241 58 4 Move 28631 | 56 1010 3489 451 10647 748 1011 699 732 606 996 492 332 618 384 849 726 367 140 417 706 953 215 992 812 183 Hop 11 | . . . . . . . . . . . . . . . . . . . . . . . 8 3 . Pick Up 215 | 8 10 27 15 17 4 1 33 4 7 13 2 2 12 2 10 2 1 5 3 4 9 14 10 . . Fast Attach 164 | 7 1 12 1 8 6 1 14 5 8 9 1 . 9 . 6 1 . 4 . 8 10 5 33 15 . Attach 110 | . 1 8 . 1 7 2 9 . 5 28 2 . . 1 10 1 2 2 3 4 5 7 11 1 . Detach 52 | . . 2 . 1 4 1 5 . 1 19 . . 5 . . 2 1 . . . 4 3 3 1 . Swap 254 | 2 14 21 . . 2 4 6 2 10 28 . 4 7 2 44 7 1 1 1 2 62 3 28 3 . Drop 236 | . 7 18 3 16 1 1 44 8 13 12 3 1 20 2 8 1 . 7 3 7 18 17 12 14 . Fire 1029 | 3 21 133 . . 28 43 25 22 48 101 5 5 14 18 120 4 5 . 7 14 164 49 150 50 . Melee 50 | . 47 3 . . . . . . . . . . . . . . . . . . . . . . . Ram 10 | . . . . . . . . 1 . . . . . . . . . . . . . . . . 9 Kick . | . . . . . . . . . . . . . . . . . . . . . . . . . . Crush 145 | . . . . . 1 2 . 1 8 6 . . . . 13 . . . . 4 1 103 6 . . Escape Stasis 16 | . . . . . . . . . . . . . 1 . . . . . . . . . . . 15 Rewire 105 | . . . . . . 85 . . . . . . . . . . . . . . 20 . . . . Trap 3 | . . . . . . . 1 . . . . . 2 . . . . . . . . . . . . Miscellaneous 37 | . . 24 . . . . . . . . . . 11 . . . . . . . 1 . 1 . . Route ------- -11/Scrapyard -10/Materials (discovered 6 exits: [*Mat x3] / [*Min x2] / *Sub) -10/Subcaves (discovered 3 exits: [*Mat x2] / [*Rec]) -8/Recycling -8/Scraptown (discovered 2 exits: *Fac x2) -6/Factory (discovered 7 exits: *Fac x4 / Low / *Ext x2) -6/Extension (discovered 2 exits: *Fac / *Cet) -6/Cetus (discovered 2 exits: *Fac / *Arc) -6/Archives (discovered 3 exits: *Fac / *Hub x2) -6/Hub_04(d) -5/Factory (discovered 3 exits: *Fac / *Upp x2) -5/Upper Caves -5/Upper Caves (discovered 2 exits: Fac / *War) -5/Warlord -4/Proximity Caves -4/Factory (discovered 3 exits: Res / *Upp x2) -4/Upper Caves -4/Upper Caves (discovered 2 exits: *Res / *Zhi) -4/Zhirov -3/Proximity Caves -3/Research (discovered 3 exits: Res / *Arm / Qua) -3/Armory (discovered 2 exits: Res / *Lab) -3/Lab -2/Research -1/Access -1/Garrison History --------- Turn | Location | Event 15 | -11/Scrapyard | Discovered new exit (range 16) 90 | -11/Scrapyard | Entered Materials 233 | -10/Materials | Discovered new exit (range 10) 316 | -10/Materials | Build established: Mutant 569 | -10/Materials | Discovered new exit (range 16) 769 | -10/Materials | Discovered new exit (range 4) 869 | -10/Materials | Discovered new exit (range 15) 890 | -10/Materials | Derelicts attacked the area 1738 | -10/Materials | Discovered new exit (range 5) 1954 | -10/Materials | Discovered new exit (range 11) 3001 | -10/Materials | Entered Subcaves 3002 | -10/Subcaves | Approached by a straggling Scientist 3028 | -10/Subcaves | Disturbed a concealed Subdweller 3302 | -10/Subcaves | A swath of the cavern ceiling suddenly collapsed 3499 | -10/Subcaves | Shifting Twisted Machinery released Spk. Treads 3843 | -10/Subcaves | Ambushed by Subdwellers from Twisted Machinery 4056 | -10/Subcaves | Disturbed a concealed Subdweller 4346 | -10/Subcaves | Ambushed by Subdweller buried in earth 4788 | -10/Subcaves | Learned Materials terminal intel 4813 | -10/Subcaves | Discovered new exit (range 16) 4828 | -10/Subcaves | A swath of the cavern ceiling suddenly collapsed 4862 | -10/Subcaves | Core integrity fell below 50% 5245 | -10/Subcaves | Discovered new exit (range 15) 5252 | -10/Subcaves | Shifting Twisted Machinery released Spk. Treads 5258 | -10/Subcaves | Shifting Twisted Machinery released Scrap Shield 5320 | -10/Subcaves | Build established: Subdweller-Mutant 5344 | -10/Subcaves | Ambushed by Subdwellers from Twisted Machinery 5418 | -10/Subcaves | Shifting Twisted Machinery released Flamer 6784 | -10/Subcaves | Shifting Twisted Machinery released Sub. Monowheel 6993 | -10/Subcaves | Visited 4L-MR0's lab 7713 | -10/Subcaves | Discovered new exit (range 15) 8109 | -10/Subcaves | Build established: Hauler-Mutant 8195 | -10/Subcaves | Found SUBCON Basin 8807 | -10/Subcaves | Found Prototype Device 8815 | -10/Subcaves | Found Meta Core 9136 | -10/Subcaves | Entered Recycling 9376 | -8/Recycling | Scanned before Scraplab entrance 9409 | -8/Recycling | Entered Scraplab 10187 | -8/Recycling | Discovered new exit (range 3) 10192 | -8/Recycling | Entered Scraptown 10192 | -8/Scraptown | System corruption cleaned by C-Scrubber 10505 | -8/Scraptown | Visited UFD Registry 10508 | -8/Scraptown | Registered with UFD as "Megafunk" 10542 | -8/Scraptown | Visited Cyclists 10560 | -8/Scraptown | Entered Cyclist Reading Room 10570 | -8/Scraptown | Learned location of Zion (-7) 10648 | -8/Scraptown | Visited TADAMA 10740 | -8/Scraptown | Visited Shadow of the Wyrm 10767 | -8/Scraptown | Visited Red Mages 11177 | -8/Scraptown | Discovered new exit (range 11) 11317 | -8/Scraptown | Scanned Subdweller tech in exchange for log data 11324 | -8/Scraptown | Learned Factory security intel 11326 | -8/Scraptown | Learned location of Testing (-2) 11384 | -8/Scraptown | Visited Spacefarers 11579 | -8/Scraptown | Visited Science Guys 11658 | -8/Scraptown | Visited Junk Repository 11724 | -8/Scraptown | Visited Cartography Club 12479 | -8/Scraptown | Visited Abandonware Association 12489 | -8/Scraptown | Learned abandonware demo "HACKBUD.EXE" 12515 | -8/Scraptown | Visited Scrapoid Pod Storage 12528 | -8/Scraptown | Visited Botcube Research 12551 | -8/Scraptown | Delivered Scrap Shield to a Scientist 12621 | -8/Scraptown | Visited Supply Room 12635 | -8/Scraptown | Visited Supply Room 12653 | -8/Scraptown | Visited Junk Cannon Lab 12755 | -8/Scraptown | Build established: Mutant 12851 | -8/Scraptown | Learned location of Extension (-6) 12851 | -8/Scraptown | Learned location of Quarantine (-3) 12851 | -8/Scraptown | Learned 8 Materials zone layouts 12851 | -8/Scraptown | Learned 24 Factory zone layouts 12851 | -8/Scraptown | Learned 4 Access zone layouts 12851 | -8/Scraptown | Learned 4 Mines zone layouts 12851 | -8/Scraptown | Learned 4 Storage zone layouts 12851 | -8/Scraptown | Learned 20 Upper Caves zone layouts 12851 | -8/Scraptown | Learned 12 Proximity Caves zone layouts 12851 | -8/Scraptown | Learned 4 Armory zone layouts 12851 | -8/Scraptown | Learned location of 2 exits from Research 12851 | -8/Scraptown | Learned location of 2 exits from Upper Caves 12851 | -8/Scraptown | Learned location of 2 exits from Proximity Caves 12851 | -8/Scraptown | Identified exit to Factory 12939 | -8/Scraptown | Found Deep Structural Scanner 13089 | -8/Scraptown | Found Prototype Special Weapon 13089 | -8/Scraptown | Identified Junk Cannon 13230 | -8/Scraptown | Identified Sfc. Transmogrifier 13367 | -8/Scraptown | Visited Junk Repository 13403 | -8/Scraptown | Visited The Evicted 48094 | -8/Scraptown | Found Scrapoid Pod 48127 | -8/Scraptown | Found Lrg. Botcube 49002 | -8/Scraptown | Met Optimus 49002 | -8/Scraptown | Accepted into 0bPrime 49098 | -8/Scraptown | Entered Factory 49098 | -6/Factory | Evolved 8 slots: Propulsion x2, Utility x5, Weapon x1 49099 | -6/Factory | Identified exit to Factory 49100 | -6/Factory | Identified exit to Extension 49100 | -6/Factory | Identified exit to Lower Caves 49175 | -6/Factory | Tech Extrapolator generated special schematic: Deep Structural Scanner 49460 | -6/Factory | Build established: Tank 49508 | -6/Factory | Found Hvy. Insulated Plating 49609 | -6/Factory | Loaded intel: 8 recycling unit locations 49683 | -6/Factory | Attached Meta Core, gained temporary slots: Propulsion, Utility, Weapon 50431 | -6/Factory | Learned location of Protoforge (-2) 50882 | -6/Factory | Entered Extension 51029 | -6/Extension | Rescued A7 51126 | -6/Extension | Rescued a captive Derelict 51126 | -6/Extension | Rescued a captive Derelict 51493 | -6/Extension | Build established: Commander-Tank 51648 | -6/Extension | Scrapoids reinforcements arrived? 51832 | -6/Extension | Warlord forces began an assault 52015 | -6/Extension | Lost 3 allies 52173 | -6/Extension | Spotted B-75 Beast 52175 | -6/Extension | Allies destroyed B-75 Beast 52239 | -6/Extension | Rescued a captive Derelict 52239 | -6/Extension | Rescued a captive Derelict 52417 | -6/Extension | Attached CPS modules to A7 52421 | -6/Extension | Attached CPS modules to 06E01-D 52503 | -6/Extension | Discovered new exit (range 16) 52505 | -6/Extension | Discovered exit to Factory (range 15) 52590 | -6/Extension | Rescued a captive Derelict 52609 | -6/Extension | Rescued a captive Derelict 52808 | -6/Extension | Rescued a captive Derelict 52808 | -6/Extension | Rescued a captive Derelict 52870 | -6/Extension | Rescued a captive Derelict 52888 | -6/Extension | Rescued a captive Derelict 53072 | -6/Extension | Identified exit to Cetus 53145 | -6/Extension | Entered Cetus 53145 | -6/Cetus | Accompanied by 28 allies (A7) 53150 | -6/Cetus | Acquired a Cetus Manufacturing Module code from A7 53162 | -6/Cetus | Spotted Cetus Guard 53164 | -6/Cetus | Spotted Cetus Guard 53164 | -6/Cetus | Spotted Cetus Guard 53165 | -6/Cetus | Spotted Cetus Guard 53171 | -6/Cetus | Allies destroyed Cetus Guard 53172 | -6/Cetus | Attached CPS modules to Cetus Guard 53176 | -6/Cetus | Attached CPS modules to Cetus Guard 53180 | -6/Cetus | Destroyed Cetus Guard 53182 | -6/Cetus | Allies destroyed Cetus Guard 53184 | -6/Cetus | Allies destroyed Cetus Guard 53206 | -6/Cetus | Lost 6 allies 53442 | -6/Cetus | Scrapoid Pod released 06C10-D (x5) 53510 | -6/Cetus | Found Scrap Suit 53737 | -6/Cetus | Discovered new exit (range 16) 53895 | -6/Cetus | Security sweep announced 54019 | -6/Cetus | Spotted Cetus Guard 54020 | -6/Cetus | Spotted Cetus Guard 54024 | -6/Cetus | Spotted Cetus Guard 54024 | -6/Cetus | Spotted Cetus Guard 54034 | -6/Cetus | Allies destroyed Cetus Guard 54037 | -6/Cetus | Allies destroyed Cetus Guard 54039 | -6/Cetus | Destroyed Cetus Guard 54072 | -6/Cetus | Discovered exit to Factory (range 16) 54075 | -6/Cetus | Lost 6 allies 54199 | -6/Cetus | Lost 6 allies 54223 | -6/Cetus | Murdered A7 54224 | -6/Cetus | Extracted ID and sensor layout for unrecognized location from A7's data core 54233 | -6/Cetus | Found Prototype Protection 54233 | -6/Cetus | Identified Med. Regenerative Plating 54278 | -6/Cetus | Met Revision 17 54372 | -6/Cetus | Found Scrap Suit 54469 | -6/Cetus | Lrg. Botcube activated 54503 | -6/Cetus | Lrg. Botcube completed mutation into treaded form, armed with 3 guns, 1 melee weapon. 54509 | -6/Cetus | Build established: Scavenger-Tank 54632 | -6/Cetus | Identified exit to Archives 54652 | -6/Cetus | Entered Archives 54652 | -6/Archives | Accompanied by 13 allies 54713 | -6/Archives | Lost 6 allies 54718 | -6/Archives | Discovered exit to Factory (range 15) 54744 | -6/Archives | Discovered new exit (range 15) 54766 | -6/Archives | Identified exit to Hub_04(d) 55137 | -6/Archives | Discovered exit to Hub_04(d) (range 16) 64098 | -6/Archives | Entered Hub_04(d) 64098 | -6/Hub_04(d) | Accompanied by 7 allies 64246 | -6/Hub_04(d) | Discovered exit to Factory (range 12) 64744 | -6/Hub_04(d) | Lost 3 allies 64885 | -6/Hub_04(d) | Unchained authorized (1B-0RG) 65021 | -6/Hub_04(d) | Build established: Scavenger-Skirmisher 65102 | -6/Hub_04(d) | Network Hub disabled 65130 | -6/Hub_04(d) | Spotted Lightning 65133 | -6/Hub_04(d) | Spotted Lightning 65150 | -6/Hub_04(d) | Spotted Lightning 65159 | -6/Hub_04(d) | Spotted Lightning 65162 | -6/Hub_04(d) | Spotted Lightning 65164 | -6/Hub_04(d) | Spotted Lightning 65165 | -6/Hub_04(d) | Attached CPS modules to Lightning 65173 | -6/Hub_04(d) | System corruption reached 10% 65174 | -6/Hub_04(d) | Destroyed Lightning 65192 | -6/Hub_04(d) | Attached CPS modules to Lightning 65226 | -6/Hub_04(d) | Found Prototype Device 65226 | -6/Hub_04(d) | Identified Exp. EM Shield 65229 | -6/Hub_04(d) | Found Prototype Processor 65229 | -6/Hub_04(d) | Identified Exp. Targeting Computer 65236 | -6/Hub_04(d) | Found Prototype Energy Cannon 65246 | -6/Hub_04(d) | System corruption reached 30% 65249 | -6/Hub_04(d) | Network Hub disabled 65299 | -6/Hub_04(d) | Lost 3 parts (1u2w) 65414 | -6/Hub_04(d) | Entered Factory 65414 | -5/Factory | Evolved 2 slots: Power x1, Utility x1 65414 | -5/Factory | Identified EMDS 65640 | -5/Factory | Repaired Centrium Heavy Treads 65696 | -5/Factory | Repaired Centrium Medium Armor Plating 65700 | -5/Factory | Discovered new exit (range 12) 65718 | -5/Factory | Identified exit to Upper Caves 66059 | -5/Factory | Found Powered Armor 66062 | -5/Factory | Found Powered Armor 66064 | -5/Factory | Found Powered Armor 66493 | -5/Factory | Destroyed 7 combat bots 66667 | -5/Factory | Build established: Scavenger-Tank 67315 | -5/Factory | Discovered new exit (range 7) 67330 | -5/Factory | Identified exit to Factory 67377 | -5/Factory | Loaded intel: 8 recycling unit locations 67414 | -5/Factory | System corruption reached 10% 67745 | -5/Factory | Fabricated Biometal Heavy Treads (x1) 67795 | -5/Factory | Discovered exit to Upper Caves (range 17) 67893 | -5/Factory | Build established: Scavenger-Mutant 67906 | -5/Factory | Entered Upper Caves 67907 | -5/Upper Caves | Identified exit to Upper Caves 67908 | -5/Upper Caves | UFD Scientist delivered a prototype 67913 | -5/Upper Caves | Found Prototype Protection 67913 | -5/Upper Caves | Identified Enh. Scrap Shield 67963 | -5/Upper Caves | Learned Factory non-interactive machine intel 68039 | -5/Upper Caves | Encountered a Warlord checkpoint 68299 | -5/Upper Caves | Build established: Scavenger-Skirmisher 68315 | -5/Upper Caves | Entered an active Warlord outpost 68336 | -5/Upper Caves | Learned 8 Factory zone layouts 68336 | -5/Upper Caves | Learned Extension stockpile data 68336 | -5/Upper Caves | Learned Factory terminal intel 68675 | -5/Upper Caves | Entered another Upper Caves area 68700 | -5/Upper Caves | Learned location of Armory (-3) 69141 | -5/Upper Caves | Discovered new exit (range 12) 69156 | -5/Upper Caves | Identified exit to Warlord 69199 | -5/Upper Caves | Entered Warlord 69253 | -5/Warlord | System corruption cleaned by Quarantine Array 69595 | -5/Warlord | Found Prototype Special Weapon 69598 | -5/Warlord | Found Prototype Special Weapon 69599 | -5/Warlord | Identified RU-N14's Throwing Claymores v3 (x2) 69605 | -5/Warlord | Found RU-N14's Throwing Claymores v3 69622 | -5/Warlord | Tech Extrapolator generated special schematic: Machine Rigger 69748 | -5/Warlord | Visited the Vortex Lab 69751 | -5/Warlord | Warlord's base attacked by MAIN.C 69760 | -5/Warlord | Found Prototype Energy Cannon 69763 | -5/Warlord | Found Prototype Energy Cannon 69763 | -5/Warlord | Identified Vortex Driver (x2) 69856 | -5/Warlord | Found Prototype Reactor 69861 | -5/Warlord | Found Prototype Device 69861 | -5/Warlord | Identified Exp. Cloaking Device 69873 | -5/Warlord | Found Prototype Hackware 69889 | -5/Warlord | Found Prototype Device 69889 | -5/Warlord | Identified Exp. Focal Shield 70101 | -5/Warlord | Warlord forces counterattacked 70141 | -5/Warlord | Spotted Striker 70219 | -5/Warlord | Spotted Executioner 70241 | -5/Warlord | Found Prototype Device 70241 | -5/Warlord | Identified Adv. Kinecellerator 70249 | -5/Warlord | Lost 22 allies 70252 | -5/Warlord | Spotted Striker 70255 | -5/Warlord | Spotted Striker 70256 | -5/Warlord | Found Prototype Processor 70263 | -5/Warlord | Destroyed Striker 70269 | -5/Warlord | Destroyed Striker 70284 | -5/Warlord | Crushed by falling debris 70292 | -5/Warlord | Destroyed 10 combat bots 70292 | -5/Warlord | Lost 5 allies 70296 | -5/Warlord | Discovered new exit (range 12) 70309 | -5/Warlord | Identified exit to Proximity Caves 70311 | -5/Warlord | Entered Proximity Caves 70315 | -4/Proximity Caves | Spotter reported a threat 70538 | -4/Proximity Caves | Build established: Scavenger-Mutant 70657 | -4/Proximity Caves | Tech Extrapolator generated special schematic: Heat Bomb Trap 70966 | -4/Proximity Caves | Entered Factory 70966 | -4/Factory | Evolved 2 slots: Utility x2 70967 | -4/Factory | Identified exit to Upper Caves 70967 | -4/Factory | Identified exit to Research 70968 | -4/Factory | Loaded intel: 231 non-interactive machine locations 70969 | -4/Factory | Loaded intel: 26 terminal locations 70969 | -4/Factory | Identified Exp. Core Analyzer 71280 | -4/Factory | Identified System Mapper 71349 | -4/Factory | Repaired Centrium Heavy Treads 71388 | -4/Factory | Repaired Biometal Heavy Treads 71612 | -4/Factory | Unchained authorized (1B-0RG) 71624 | -4/Factory | Tech Extrapolator generated special schematic: Wartreads 71656 | -4/Factory | Build established: Scavenger-Tank 71704 | -4/Factory | Found Prototype Hackware 71955 | -4/Factory | Identified Exp. System Shield 72204 | -4/Factory | Fabricated Exp. EM Shield? 72640 | -4/Factory | Fabricated Lrn. Sensor Array (x2) 72760 | -4/Factory | Loaded intel: 8 recycling unit locations 72997 | -4/Factory | Garrison activated, responded to threat 73026 | -4/Factory | Identified Vortex Chain Reactor 73053 | -4/Factory | Lost 6 parts (2p2u2w) 73108 | -4/Factory | Entered Upper Caves 73405 | -4/Upper Caves | Build established: Hacker-Skirmisher 74035 | -4/Upper Caves | Spotted B-86 Titan 74176 | -4/Upper Caves | Discovered new exit (range 8) 74231 | -4/Upper Caves | Identified exit to Upper Caves 74247 | -4/Upper Caves | Entered another Upper Caves area 74333 | -4/Upper Caves | Discovered exit to Research (range 22) 74439 | -4/Upper Caves | Tech Extrapolator generated special schematic: Energy Deflector 74643 | -4/Upper Caves | Learned Research stockpile data 74675 | -4/Upper Caves | Discovered new exit (range 19) 74970 | -4/Upper Caves | Identified exit to Zhirov 74971 | -4/Upper Caves | Entered Zhirov 74971 | -4/Zhirov | Discovered new exit (range 3) 74999 | -4/Zhirov | Met Zhirov 75035 | -4/Zhirov | Learned location of Command (-1) 75049 | -4/Zhirov | Zhirov requested help retrieving the SGEMP Prototype 75072 | -4/Zhirov | Found Alien Artifact 75072 | -4/Zhirov | Identified Integrated Reactor 75072 | -4/Zhirov | Installed Integrated Reactor, increased core energy generation (+10) 75134 | -4/Zhirov | Found Alien Artifact 75199 | -4/Zhirov | Identified exit to Proximity Caves 75210 | -4/Zhirov | Entered Proximity Caves 75212 | -3/Proximity Caves | Attracted the attention of an 0b10 checkpoint 75316 | -3/Proximity Caves | Spotter reported a threat 75383 | -3/Proximity Caves | Spotter reported a threat 75975 | -3/Proximity Caves | Entered Research 75975 | -3/Research | Evolved 2 slots: Utility x2 75976 | -3/Research | Identified exit to Armory 75977 | -3/Research | Identified exit to Quarantine 75977 | -3/Research | Identified exit to Research 76175 | -3/Research | Revision forces began assault on 0b10 76269 | -3/Research | Met up with Revision 17++ 76538 | -3/Research | Spotted B-86 Titan 76675 | -3/Research | Research terminal network offline 76696 | -3/Research | Identified Transdimensional Reconstructor 76724 | -3/Research | Tech Extrapolator generated special schematic: Telecube 77142 | -3/Research | Spotted Striker 77211 | -3/Research | Lost 11 allies 77269 | -3/Research | Entered Armory 77270 | -3/Armory | Met VL-GR5, who suggested a friendly competition 77619 | -3/Armory | Found Prototype Device 77619 | -3/Armory | Identified Adv. Particle Accelerator 77780 | -3/Armory | Repaired Exp. Focal Shield? 77889 | -3/Armory | Lost 4 allies 77964 | -3/Armory | Scrapoid reinforcements arrived 78008 | -3/Armory | Lost 4 allies 78024 | -3/Armory | Found Scrap Suit 78413 | -3/Armory | Build established: Scavenger-Tank 78598 | -3/Armory | Discovered exit to Research (range 25) 79617 | -3/Armory | System corruption reached 10% 79618 | -3/Armory | Repaired Exp. Power Shielding? 79650 | -3/Armory | Watched by a mysterious "MATRIX" hacker 79723 | -3/Armory | Found Prototype Processor 79723 | -3/Armory | Identified Exp. Melee Analysis Suite 79755 | -3/Armory | Discovered new exit (range 14) 79832 | -3/Armory | Identified exit to Lab 79834 | -3/Armory | Entered Lab 79836 | -3/Lab | Discovered exit to Research (range 9) 79877 | -3/Lab | Hidden lab's door opened automatically 79877 | -3/Lab | Sensor layout match revealed 79878 | -3/Lab | Gained access to the hidden lab's interior 79902 | -3/Lab | Found Alien Artifact 79922 | -3/Lab | Found Alien Artifact 79922 | -3/Lab | Identified Integrated Dissipator 79922 | -3/Lab | Installed Integrated Dissipator, increased core heat dissipation (+20) 79936 | -3/Lab | Found Transdimensional Reconstructor 79945 | -3/Lab | Found Alien Artifact 79982 | -3/Lab | Found Prototype Protection 79982 | -3/Lab | Identified Exp. Powered Armor 79987 | -3/Lab | Found Prototype Energy Gun 79987 | -3/Lab | Identified Hyp. EM Gauss Rifle 80009 | -3/Lab | Found Prototype Hackware 80044 | -3/Lab | Found Hyp. EM Gauss Rifle 80093 | -3/Lab | Found Prototype Special Weapon 80179 | -3/Lab | Detected by scanners 80185 | -3/Lab | Confronted by A5 80391 | -3/Lab | Destroyed A5 80464 | -3/Lab | Entered Research 80464 | -2/Research | Evolved 2 slots: Utility x1, Weapon x1 80465 | -2/Research | Identified exit to Access 80465 | -2/Research | Identified exit to Testing 80513 | -2/Research | Identified Quantum Router 80538 | -2/Research | Identified Gui. Remote Datajack 80713 | -2/Research | Repaired Adv. Force Field? 80766 | -2/Research | Repaired Biometal Heavy Treads+ 80819 | -2/Research | Spotted B-90 Cyclops 80996 | -2/Research | Repaired Biometal Heavy Treads+ 81044 | -2/Research | Repaired Ovr. Railgun 81044 | -2/Research | Fabricated Exp. Transmission Jammer? 81243 | -2/Research | Discovered exit to Access (range 8) 81350 | -2/Research | Build established: Hacker-Tank 81890 | -2/Research | System corruption reached 10% 81940 | -2/Research | P-80 Master assimilated allied Terminator 9b 81941 | -2/Research | P-80 Master assimilated allied Plague 9b 81980 | -2/Research | Cargo convoy interrupted 81989 | -2/Research | Identified Core Reset Matrix 81989 | -2/Research | Identified Core Regenerator 81989 | -2/Research | Used Core Reset Matrix 81993 | -2/Research | Sensed 1 artifact in vicinity 82028 | -2/Research | Intercept squad dispatched 82037 | -2/Research | Destroyed 8 combat bots 82040 | -2/Research | Lost 16 parts (1p3n6u6w) 82042 | -2/Research | Spotted Tracker 82044 | -2/Research | Spotted Tracker 82049 | -2/Research | Core integrity fell below 50% 82050 | -2/Research | Warped through subspace 82079 | -2/Research | Lost 4 parts (2n1u1w) 82127 | -2/Research | Used Core Regenerator, restored core integrity (+362) 82194 | -2/Research | Spotted Combat Programmer 82249 | -2/Research | Discovered exit to Access (range 8) 82252 | -2/Research | Entered Access 82252 | -1/Access | Evolved 2 slots: Propulsion x2 82307 | -1/Access | Build established: Scavenger-Sprinter 82345 | -1/Access | Spotted B-99 Colossus 82616 | -1/Access | Intercept squad dispatched 82625 | -1/Access | Lost 3 parts (1p2n) 82632 | -1/Access | Energy Cycler disabled 82643 | -1/Access | Spotted Tracker 82647 | -1/Access | Warped through subspace 82696 | -1/Access | Spotted Combat Programmer 82710 | -1/Access | Lost 4 parts (3n1w) 82712 | -1/Access | Identified exit to Garrison 82712 | -1/Access | Entered Garrison 82744 | -1/Garrison | Spotted B-99 Colossus 82776 | -1/Garrison | Triggered checkpoint 82777 | -1/Garrison | Core integrity fell below 50% 82814 | -1/Garrison | Triggered checkpoint 82815 | -1/Garrison | Core integrity fell below 20% 82821 | -1/Garrison | Lost 3 parts (3u) 82832 | -1/Garrison | Destroyed by S-43 Plague with Heavy Machine Gun Last Messages --------------- 82791_ Destabilizing: System interference. 82791_ Exp. Core Analyzer temporarily disabled. 82793_ Penetrated by Slug. 82793_ Slug penetrates Wall. 82794_ Slug penetrates Reinforced Barrier. 82797_ Slug penetrates Wall. 82797_ Slug penetrates Reinforced Barrier. 82812_ Penetrated by Slug. 82812_ Slug penetrates Reinforced Barrier. 82814_ Beams of light sweep through the air. An alarm sounds. Garrison Door activated. 82815_ Slammed into S-43 Plague. 82815_ Adv. Signal Interpreter broken. 82815_ Destabilizing: Short circuit. 82816_ Knocked back. 82816_ Slug penetrates Wall. 82816_ Penetrated by Slug. 82818_ Slammed into S-43 Plague. 82830_ Exp. Core Analyzer destroyed. Map ----- +----------------------------------------------------+ | ??????????????????????????????????????????## ##"" | | ??????????????????????????????????????????# | | ??????????????????????????????????????????# | | ??????????????????????????????????????????# | | ??????????????????????????????????????????# ## | | ??????????????????????????????????????????# ## | | ??????????????????????????????????????????" | | ??????????????????????????????????????????" | | ??????????????????????????????????????????" | | ??????????????????????????????????????????" | | ??????????????????????????????????????????# ## | | ??????????????????????????????????????????# ## | | ??????????????????????????????????????????# | | ??????????????????????????????????????????# | | ??????????????????????????????????????????# | | ??????????????????????????????????????????# ##% | | ??????????????????????????????????????????# ## | | ??????????????????????????????????????????# ##/# | | ??????????????????????????????????????????# ##%# | | ??????????????????????????????????????????# %+%%# | | ??????????????????????????????????????????# #### | | ??????????????????????????????????????????# #??? | | ?????????????????????##############;####### #??? | | ????????????????# # # s ps #??? | | ????????????????# ; ; s p #??? | | ???????????????????### @ s #??? | | ?????????????????????# ######################??? | | ?????????????????????# ????????????????????????? | | ?????????????????????# ?????????????????????????? | | ?????????????????????# ?????????????????????????? | | ?????????????????????# ??????????????????????????? | | ?????????????????????# ??????????????????????????? | | ?????????????????????#???????????????????????????? | | ?????????????????????????????????????????????????? | | ?????????????????????????????????????????????????? | | ?????????????????????????????????????????????????? | | ?????????????????????????????????????????????????? | | ?????????????????????????????????????????????????? | | ?????????????????????????????????????????????????? | | ?????????????????????????????????????????????????? | | ?????????????????????????????????????????????????? | | ?????????????????????????????????????????????????? | | ?????????????????????????????????????????????????? | | ?????????????????????????????????????????????????? | | ?????????????????????????????????????????????????? | | ?????????????????????????????????????????????????? | | ?????????????????????????????????????????????????? | | ?????????????????????????????????????????????????? | | ?????????????????????????????????????????????????? | | ?????????????????????????????????????????????????? | +----------------------------------------------------+ Best States ------------- Heat Dissipation 72 Coolant Potential 100 Energy Generation 80 Energy Capacity 1165 Matter Stores 300 Matter Capacity 300 Sight Range 23 Robot Scan Range 19 Terrain Scan Range 30 Terrain Scan Density 210 ECM Strength 2 Jamming Range 22 Cloak Strength 4 Power Amplification 30 Base Temperature (-) 200 Corruption Block 15 Armor Coverage 1650 Resistance: KI 30 Resistance: TH 30 Resistance: EM 75 Core Shielding 40 Power Shielding 90 Utility Shielding 90 Evasion (%) 65 Targeting Accuracy 20 Melee Accuracy 8 Launcher Accuracy 40 Core Analysis 8 Recoil Reduction 4 Particle Charging 50 Kinecelleration 50 Offensive Hacking 34 Defensive Hacking 25 Authchip Count 12 Item Schematics ----------------- None Robot Schematics ------------------ None Fabricated ------------ Biometal Heavy Treads | x1 | -5/Factory | Preloaded Exp. EM Shield | x1 | -4/Factory Lrn. Sensor Array | x2 | -4/Factory Exp. Transmission Jammer | x1 | -2/Research Repaired ---------- Centrium Heavy Treads | 16% | -5/Factory Centrium Medium Armor Plating | 63% | -5/Factory Centrium Heavy Treads | 10% | -4/Factory Biometal Heavy Treads | 61% | -4/Factory Exp. Focal Shield | 16% | -3/Armory Exp. Power Shielding | 60% | -3/Armory Adv. Force Field | 50% | -2/Research Biometal Heavy Treads | 73% | -2/Research Biometal Heavy Treads | 72% | -2/Research Ovr. Railgun | 17% | -2/Research | Broken Studied --------- None Alien Tech Used ----------------- Integrated Reactor Integrated Dissipator Core Reset Matrix Transdimensional Reconstructor Core Regenerator Achievements -------------- Coming In Hot Infodabbler Let Me Out Of Here Challenges ------------ None Game ------ Seed MomentumZipDistortion Manual? 0 Play Time 08:54:47 Cumulative 771.4 hours Start 2026.07.25 @ 14:03:02 End 2026.07.26 @ 12:38:11 Sessions 19 Manual Loads 0 Difficulty Rogue Special Mode None Game No. 269 Rogue 265 Adventurer 4 Explorer 0 Win Type - Total 21 Types 9/2/6/0/0/0/2/2/0/0 Lore% 88 Gallery% 76 Achievement% 60 Wizard Run 0 Options --------- Layout 1 ASCII 0 Keyboard 0 Movement Arrows Keybinds 0 Fullscreen 1 Font 40/SmallcapsGlow Map View 50x40 Zoom Use 0% Tactical HUD 1 Map Filters NONE Filters NONE Steam 1 RUN: 5859386d-7d0a-4850-9daa-fd1e7f902270